Workbook

Sheet App.2-FA Proposed REG Invest.
A1: Appendix 2-FA
A2: Renewable Generation Connection Investment Summary (over the rate setting period)
A4: Enter the details of the Renewable Generation Connection projects as described in Section 2.5.2.5 of the Filing Requirements.
A5: All costs entered on this page will be transferred to the appropriate cells in the appendices that follow.
A6: For Part A, Renewable Enabling Improvements (REI), these amounts will be transferred to Appendix 2 - FB
A7: For Part B, Expansions, these amounts will be transferred to Appendix 2 - FC
A9: If there are more than five projects proposed to be in-service in a certain year, please amend the tables below and ensure that the formulae for the Total Amounts in any given rate year are updated.
A10: Based on the current methodology and allocation, amounts allocated represent 6% for REI Connection Investments and 17% for Expansion Investments. (pg 15, EB-2009-0349)
A13: Part A
A14: REI Investments (Direct Benefit at 6%) | D14: 2015 | E14: 2016 | F14: 2017 | G14: 2018 | H14: 2019 | I14: =H14+1 -> 2020 | J14: =I14+1 -> 2021 | K14: =J14+1 -> 2022 | L14: =K14+1 -> 2023 | M14: =L14+1 -> 2024 | N14: =M14+1 -> 2025 | O14: =N14+1 -> 2026 | P14: =O14+1 -> 2027 | Q14: =P14+1 -> 2028 | R14: =Q14+1 -> 2029 | S14: =R14+1 -> 2030 | T14: =S14+1 -> 2031
A15: Project 1
A16: Name: OPA FIT/MicroFIT Program Management
A17: Capital Costs
A18: OM&A (Start-Up) | D18: 0 | E18: 0 | F18: 0 | G18: 0 | H18: 0 | I18: 0 | J18: 0 | K18: 0 | L18: 0 | M18: 0 | N18: 0 | O18: 0 | P18: 0 | Q18: 0 | R18: 0 | S18: 0 | T18: 0
A19: OM&A (Ongoing) | D19: 117500 | E19: 122500 | F19: 110000 | G19: 110000 | H19: 110000 | I19: 0 | J19: 0 | K19: 0 | L19: 0 | M19: 0 | N19: 0 | O19: 0 | P19: 0 | Q19: 0 | R19: 0 | S19: 0 | T19: 0
A21: Project 2
A22: Name: Maintenance of Connected REG Infrastructure
A23: Capital Costs | D23: 0 | E23: 0 | F23: 0 | G23: 0 | H23: 0 | I23: 0 | J23: 0 | K23: 0 | L23: 0 | M23: 0 | N23: 0 | O23: 0 | P23: 0 | Q23: 0 | R23: 0 | S23: 0 | T23: 0
A24: OM&A (Start-Up) | D24: 0 | E24: 0 | F24: 0 | G24: 0 | H24: 0 | I24: 0 | J24: 0 | K24: 0 | L24: 0 | M24: 0 | N24: 0 | O24: 0 | P24: 0 | Q24: 0 | R24: 0 | S24: 0 | T24: 0
A25: OM&A (Ongoing) | D25: 70000 | E25: 76000 | F25: 82000 | G25: 88000 | H25: 94000 | I25: 0 | J25: 0 | K25: 0 | L25: 0 | M25: 0 | N25: 0 | O25: 0 | P25: 0 | Q25: 0 | R25: 0 | S25: 0 | T25: 0
A27: Project 3
A28: Name: Remote Monitoring and Control of REG
A29: Capital Costs | D29: 180000 | E29: 180000 | F29: 180000 | G29: 180000 | H29: 180000 | I29: 0 | J29: 0 | K29: 0 | L29: 0 | M29: 0 | N29: 0 | O29: 0 | P29: 0 | Q29: 0 | R29: 0 | S29: 0 | T29: 0
A30: OM&A (Start-Up) | D30: =0.05*D29 -> 9000 | E30: =0.05*E29 -> 9000 | F30: 9000 | G30: 9000 | H30: 9000 | I30: 0 | J30: 0 | K30: 0 | L30: 0 | M30: 0 | N30: 0 | O30: 0 | P30: 0 | Q30: 0 | R30: 0 | S30: 0 | T30: 0
A31: OM&A (Ongoing)
A33: Project 4
A34: Name: REI Connection Project
A35: Capital Costs | D35: 0 | E35: 0 | F35: 0 | G35: 0 | H35: 0 | I35: 0 | J35: 0 | K35: 0 | L35: 0 | M35: 0 | N35: 0 | O35: 0 | P35: 0 | Q35: 0 | R35: 0 | S35: 0 | T35: 0
A36: OM&A (Start-Up) | D36: 0 | E36: 0 | F36: 0 | G36: 0 | H36: 0 | I36: 0 | J36: 0 | K36: 0 | L36: 0 | M36: 0 | N36: 0 | O36: 0 | P36: 0 | Q36: 0 | R36: 0 | S36: 0 | T36: 0
A37: OM&A (Ongoing) | D37: 0 | E37: 0 | F37: 0 | G37: 0 | H37: 0 | I37: 0 | J37: 0 | K37: 0 | L37: 0 | M37: 0 | N37: 0 | O37: 0 | P37: 0 | Q37: 0 | R37: 0 | S37: 0 | T37: 0
A39: Project 5
A40: Name: REI Connection Project
A41: Capital Costs | D41: 0 | E41: 0 | F41: 0 | G41: 0 | H41: 0 | I41: 0 | J41: 0 | K41: 0 | L41: 0 | M41: 0 | N41: 0 | O41: 0 | P41: 0 | Q41: 0 | R41: 0 | S41: 0 | T41: 0
A42: OM&A (Start-Up) | D42: 0 | E42: 0 | F42: 0 | G42: 0 | H42: 0 | I42: 0 | J42: 0 | K42: 0 | L42: 0 | M42: 0 | N42: 0 | O42: 0 | P42: 0 | Q42: 0 | R42: 0 | S42: 0 | T42: 0
A43: OM&A (Ongoing) | D43: 0 | E43: 0 | F43: 0 | G43: 0 | H43: 0 | I43: 0 | J43: 0 | K43: 0 | L43: 0 | M43: 0 | N43: 0 | O43: 0 | P43: 0 | Q43: 0 | R43: 0 | S43: 0 | T43: 0
A45: Total Capital Costs | D45: =SUM(D41,D35,D29,D23,D17) -> 180000 | E45: 180000 | F45: 180000 | G45: 180000 | H45: 180000 | I45: 0 | J45: 0 | K45: 0 | L45: 0 | M45: 0 | N45: 0 | O45: 0 | P45: 0 | Q45: 0 | R45: 0 | S45: 0 | T45: 0
A46: Total OM&A (Start-Up) | D46: =SUM(D42,D36,D30,D24,D18) -> 9000 | E46: 9000 | F46: 9000 | G46: 9000 | H46: 9000 | I46: 0 | J46: 0 | K46: 0 | L46: 0 | M46: 0 | N46: 0 | O46: 0 | P46: 0 | Q46: 0 | R46: 0 | S46: 0 | T46: 0
A47: Total OM&A (Ongoing) | D47: =SUM(D43,D37,D31,D25,D19) -> 187500 | E47: 198500 | F47: 192000 | G47: 198000 | H47: 204000 | I47: 0 | J47: 0 | K47: 0 | L47: 0 | M47: 0 | N47: 0 | O47: 0 | P47: 0 | Q47: 0 | R47: 0 | S47: 0 | T47: 0
A49: Appendix 2-FA
A50: Renewable Generation Connection Investment Summary (over the rate setting period)
A53: Part B
A54: Expansion Investments (Direct Benefit at 17%) | D54: =D14 -> 2015 | E54: 2016 | F54: 2017 | G54: 2018 | H54: 2019 | I54: 2020 | J54: 2021 | K54: 2022 | L54: 2023 | M54: 2024 | N54: 2025 | O54: 2026 | P54: 2027 | Q54: 2028 | R54: 2029 | S54: 2030 | T54: 2031
A55: Project 1
A56: Name: Transformer Replacement
A57: Capital Costs | D57: 60000 | E57: 60000 | F57: 60000 | G57: 60000 | H57: 60000 | I57: 0 | J57: 0 | K57: 0 | L57: 0 | M57: 0 | N57: 0 | O57: 0 | P57: 0 | Q57: 0 | R57: 0 | S57: 0 | T57: 0
A58: OM&A (Start-Up) | D58: =0.1*D57 -> 6000 | E58: =0.1*E57 -> 6000 | F58: 6000 | G58: 6000 | H58: 6000 | I58: 0 | J58: 0 | K58: 0 | L58: 0 | M58: 0 | N58: 0 | O58: 0 | P58: 0 | Q58: 0 | R58: 0 | S58: 0 | T58: 0
A59: OM&A (Ongoing) | D59: 0 | E59: 0 | F59: 0 | G59: 0 | H59: 0 | I59: 0 | J59: 0 | K59: 0 | L59: 0 | M59: 0 | N59: 0 | O59: 0 | P59: 0 | Q59: 0 | R59: 0 | S59: 0 | T59: 0
A61: Project 2
A62: Name: Rebuilding Existing Line
A63: Capital Costs | D63: 38000 | E63: 10000 | F63: 12000 | G63: 14000 | H63: 16000 | I63: 0 | J63: 0 | K63: 0 | L63: 0 | M63: 0 | N63: 0 | O63: 0 | P63: 0 | Q63: 0 | R63: 0 | S63: 0 | T63: 0
A64: OM&A (Start-Up) | D64: =0.1*D63 -> 3800 | E64: =0.1*E63 -> 1000 | F64: 1200 | G64: 1400 | H64: 1600 | I64: 0 | J64: 0 | K64: 0 | L64: 0 | M64: 0 | N64: 0 | O64: 0 | P64: 0 | Q64: 0 | R64: 0 | S64: 0 | T64: 0
A65: OM&A (Ongoing) | D65: 0 | E65: 0 | F65: 0 | G65: 0 | H65: 0 | I65: 0 | J65: 0 | K65: 0 | L65: 0 | M65: 0 | N65: 0 | O65: 0 | P65: 0 | Q65: 0 | R65: 0 | S65: 0 | T65: 0
A67: Project 3
A68: Name: Expansion Connection Project
A69: Capital Costs | D69: 0 | E69: 0 | F69: 0 | G69: 0 | H69: 0 | I69: 0 | J69: 0 | K69: 0 | L69: 0 | M69: 0 | N69: 0 | O69: 0 | P69: 0 | Q69: 0 | R69: 0 | S69: 0 | T69: 0
A70: OM&A (Start-Up) | D70: 0 | E70: 0 | F70: 0 | G70: 0 | H70: 0 | I70: 0 | J70: 0 | K70: 0 | L70: 0 | M70: 0 | N70: 0 | O70: 0 | P70: 0 | Q70: 0 | R70: 0 | S70: 0 | T70: 0
A71: OM&A (Ongoing) | D71: 0 | E71: 0 | F71: 0 | G71: 0 | H71: 0 | I71: 0 | J71: 0 | K71: 0 | L71: 0 | M71: 0 | N71: 0 | O71: 0 | P71: 0 | Q71: 0 | R71: 0 | S71: 0 | T71: 0
A73: Project 4
A74: Name: Expansion Connection Project
A75: Capital Costs | D75: 0 | E75: 0 | F75: 0 | G75: 0 | H75: 0 | I75: 0 | J75: 0 | K75: 0 | L75: 0 | M75: 0 | N75: 0 | O75: 0 | P75: 0 | Q75: 0 | R75: 0 | S75: 0 | T75: 0
A76: OM&A (Start-Up) | D76: 0 | E76: 0 | F76: 0 | G76: 0 | H76: 0 | I76: 0 | J76: 0 | K76: 0 | L76: 0 | M76: 0 | N76: 0 | O76: 0 | P76: 0 | Q76: 0 | R76: 0 | S76: 0 | T76: 0
A77: OM&A (Ongoing) | D77: 0 | E77: 0 | F77: 0 | G77: 0 | H77: 0 | I77: 0 | J77: 0 | K77: 0 | L77: 0 | M77: 0 | N77: 0 | O77: 0 | P77: 0 | Q77: 0 | R77: 0 | S77: 0 | T77: 0
A79: Project 5
A80: Name: Expansion Connection Project
A81: Capital Costs | D81: 0 | E81: 0 | F81: 0 | G81: 0 | H81: 0 | I81: 0 | J81: 0 | K81: 0 | L81: 0 | M81: 0 | N81: 0 | O81: 0 | P81: 0 | Q81: 0 | R81: 0 | S81: 0 | T81: 0
A82: OM&A (Start-Up) | D82: 0 | E82: 0 | F82: 0 | G82: 0 | H82: 0 | I82: 0 | J82: 0 | K82: 0 | L82: 0 | M82: 0 | N82: 0 | O82: 0 | P82: 0 | Q82: 0 | R82: 0 | S82: 0 | T82: 0
A83: OM&A (Ongoing) | D83: 0 | E83: 0 | F83: 0 | G83: 0 | H83: 0 | I83: 0 | J83: 0 | K83: 0 | L83: 0 | M83: 0 | N83: 0 | O83: 0 | P83: 0 | Q83: 0 | R83: 0 | S83: 0 | T83: 0
A85: Total Capital Costs | D85: =SUM(D81,D75,D69,D63,D57) -> 98000 | E85: =SUM(E81,E75,E69,E63,E57) -> 70000 | F85: 72000 | G85: 74000 | H85: 76000 | I85: =SUM(I81,I75,I69,I63,I57) -> 0 | J85: =SUM(J81,J75,J69,J63,J57) -> 0 | K85: 0 | L85: 0 | M85: 0 | N85: 0 | O85: 0 | P85: =SUM(P81,P75,P69,P63,P57) -> 0 | Q85: 0 | R85: 0 | S85: 0 | T85: 0
A86: Total OM&A (Start-Up) | D86: =SUM(D82,D76,D70,D64,D58) -> 9800 | E86: 7000 | F86: 7200 | G86: 7400 | H86: 7600 | I86: =SUM(I82,I76,I70,I64,I58) -> 0 | J86: =SUM(J82,J76,J70,J64,J58) -> 0 | K86: 0 | L86: 0 | M86: 0 | N86: 0 | O86: 0 | P86: =SUM(P82,P76,P70,P64,P58) -> 0 | Q86: 0 | R86: 0 | S86: 0 | T86: 0
A87: Total OM&A (Ongoing) | D87: =SUM(D83,D77,D71,D65,D59) -> 0 | E87: 0 | F87: 0 | G87: 0 | H87: 0 | I87: =SUM(I83,I77,I71,I65,I59) -> 0 | J87: =SUM(J83,J77,J71,J65,J59) -> 0 | K87: 0 | L87: 0 | M87: 0 | N87: 0 | O87: 0 | P87: =SUM(P83,P77,P71,P65,P59) -> 0 | Q87: 0 | R87: 0 | S87: 0 | T87: 0

Sheet App.2-FB Calc of REG Improvemnt
A1: Appendix 2-FB
A2: Calculation of Renewable Generation Connection Direct Benefits/Provincial Amount: Renewable Enabling Improvement Investments | AL2: Proposed | AO2: 2027 | AR2: 2028 | AU2: 2029 | AX2: 2030 | BA2: 2031
AL3: ST Interest | AO3: 0.0391 | AR3: 0.0391 | AU3: 0.0391 | AX3: 0.0391 | BA3: 0.0391
A4: This table will calculate the distributor/provincial shares of the investments entered in Part A of Appendix 2-FA. | AL4: LT Interest | AO4: 0.0419 | AR4: 0.0435 | AU4: 0.0436 | AX4: 0.0437 | BA4: 0.0451
A5: Enter values in green shaded cells: WCA percentage, debt percentages, interest rates, kWh, tax rates, amortization period, CCA Class and percentage. | AL5: ROE | AO5: 0.09 | AR5: 0.09 | AU5: 0.09 | AX5: 0.09 | BA5: 0.09
A6: Rate Riders are not calculated for Test Year as these assets and costs are already in the distributor's rate base/revenue requirement. | AL6: WCA | AO6: 0.061029 | AR6: 0.061896 | AU6: 0.061993 | AX6: 0.062054 | BA6: 0.062847
D8: 2015Test Year | G8: 2016 | J8: 2017 | K8: 2016 | M8: 2018 | P8: 2019 | S8: 2020 | V8: =+S8+1 -> 2021 | Y8: =+V8+1 -> 2022 | AB8: =+Y8+1 -> 2023 | AE8: =+AB8+1 -> 2024 | AH8: =+AE8+1 -> 2025 | AK8: =+AH8+1 -> 2026 | AN8: =+AK8+1 -> 2027 | AQ8: =+AN8+1 -> 2028 | AT8: =+AQ8+1 -> 2029 | AW8: =+AT8+1 -> 2030 | AZ8: =+AW8+1 -> 2031
E9: Direct Benefit | F9: Provincial | H9: Direct Benefit | I9: Provincial | K9: Direct Benefit | L9: Provincial | N9: Direct Benefit | O9: Provincial | Q9: Direct Benefit | R9: Provincial | T9: Direct Benefit | U9: Provincial | W9: Direct Benefit | X9: Provincial | Z9: Direct Benefit | AA9: Provincial | AC9: Direct Benefit | AD9: Provincial | AF9: Direct Benefit | AG9: Provincial | AI9: Direct Benefit | AJ9: Provincial | AL9: Direct Benefit | AM9: Provincial | AO9: Direct Benefit | AP9: Provincial | AR9: Direct Benefit | AS9: Provincial | AU9: Direct Benefit | AV9: Provincial | AX9: Direct Benefit | AY9: Provincial | BA9: Direct Benefit | BB9: Provincial
B10: 2015 | D10: Total | E10: 0.06 | F10: 0.94 | G10: Total | H10: 0.06 | I10: 0.94 | J10: Total | K10: 0.06 | L10: 0.94 | M10: Total | N10: 0.06 | O10: 0.94 | P10: Total | Q10: 0.06 | R10: 0.94 | S10: Total | T10: 0.06 | U10: 0.94 | V10: Total | W10: 0.06 | X10: 0.94 | Y10: Total | Z10: 0.06 | AA10: 0.94 | AB10: Total | AC10: 0.06 | AD10: 0.94 | AE10: Total | AF10: 0.06 | AG10: 0.94 | AH10: Total | AI10: 0.06 | AJ10: 0.94 | AK10: Total | AL10: 0.06 | AM10: 0.94 | AN10: Total | AO10: 0.06 | AP10: 0.94 | AQ10: Total | AR10: 0.06 | AS10: 0.94 | AT10: Total | AU10: 0.06 | AV10: 0.94 | AW10: Total | AX10: 0.06 | AY10: 0.94 | AZ10: Total | BA10: 0.06 | BB10: 0.94
A11: Net Fixed Assets (average) | E11: =D11*E10 -> 0 | F11: =D11*F10 -> 0 | G11: =E75 -> 255000 | H11: =G11*H10 -> 15300 | I11: =G11*I10 -> 239700 | J11: =F75 -> 411000 | K11: =J11*K10 -> 24660 | L11: =J11*L10 -> 386340 | M11: =G75 -> 555000 | N11: =M11*N10 -> 33300 | O11: =M11*O10 -> 521700 | P11: =H75 -> 687000 | Q11: =P11*Q10 -> 41220 | R11: =P11*R10 -> 645780 | S11: =I75 -> 720000 | T11: =S11*T10 -> 43200 | U11: =S11*U10 -> 676800 | V11: =J75 -> 660000 | W11: =V11*W10 -> 39600 | X11: =V11*X10 -> 620400 | Y11: =K75 -> 600000 | Z11: =Y11*Z10 -> 36000 | AA11: =Y11*AA10 -> 564000 | AB11: =L75 -> 540000 | AC11: =AB11*AC10 -> 32400 | AD11: =AB11*AD10 -> 507600 | AE11: =M75 -> 480000 | AF11: =AE11*AF10 -> 28800 | AG11: =AE11*AG10 -> 451200 | AH11: =N75 -> 420000 | AI11: =AH11*AI10 -> 25200 | AJ11: =AH11*AJ10 -> 394800 | AK11: =O75 -> 360000 | AL11: =AK11*AL10 -> 21600 | AM11: =AK11*AM10 -> 338400 | AN11: =P75 -> 300000 | AO11: =AN11*AO10 -> 18000 | AP11: =AN11*AP10 -> 282000 | AQ11: =Q75 -> 240000 | AR11: =AQ11*AR10 -> 14400 | AS11: =AQ11*AS10 -> 225600 | AT11: =R75 -> 180000 | AU11: =AT11*AU10 -> 10800 | AV11: =AT11*AV10 -> 169200 | AW11: =S75 -> 120000 | AX11: =AW11*AX10 -> 7200 | AY11: =AW11*AY10 -> 112800 | AZ11: =T75 -> 60000 | BA11: =AZ11*BA10 -> 3600 | BB11: =AZ11*BB10 -> 56400
A12: Incremental OM&A (on-going, N/A for Provincial Recovery) | D12: ='App.2-FA Proposed REG Invest.'!D47 -> 187500 | E12: =D12 -> 187500 | G12: ='App.2-FA Proposed REG Invest.'!E47 -> 198500 | H12: =G12 -> 198500 | J12: ='App.2-FA Proposed REG Invest.'!F47 -> 192000 | K12: =J12 -> 192000 | M12: ='App.2-FA Proposed REG Invest.'!G47 -> 198000 | N12: =M12 -> 198000 | P12: ='App.2-FA Proposed REG Invest.'!H47 -> 204000 | Q12: =P12 -> 204000 | S12: ='App.2-FA Proposed REG Invest.'!I47 -> 0 | T12: =S12 -> 0 | V12: ='App.2-FA Proposed REG Invest.'!J47 -> 0 | W12: =V12 -> 0 | Y12: ='App.2-FA Proposed REG Invest.'!K47 -> 0 | Z12: =Y12 -> 0 | AB12: ='App.2-FA Proposed REG Invest.'!L47 -> 0 | AC12: =AB12 -> 0 | AE12: ='App.2-FA Proposed REG Invest.'!M47 -> 0 | AF12: =AE12 -> 0 | AH12: ='App.2-FA Proposed REG Invest.'!N47 -> 0 | AI12: =AH12 -> 0 | AK12: ='App.2-FA Proposed REG Invest.'!O47 -> 0 | AL12: =AK12 -> 0 | AN12: ='App.2-FA Proposed REG Invest.'!P47 -> 0 | AO12: =AN12 -> 0 | AQ12: ='App.2-FA Proposed REG Invest.'!Q47 -> 0 | AR12: =AQ12 -> 0 | AT12: ='App.2-FA Proposed REG Invest.'!R47 -> 0 | AU12: =AT12 -> 0 | AW12: ='App.2-FA Proposed REG Invest.'!S47 -> 0 | AX12: =AW12 -> 0 | AZ12: ='App.2-FA Proposed REG Invest.'!T47 -> 0 | BA12: =AZ12 -> 0
A13: Incremental OM&A (start-up, applicable for Provincial Recovery) | D13: ='App.2-FA Proposed REG Invest.'!D46 -> 9000 | E13: =D13*E10 -> 540 | F13: =D13*F10 -> 8460 | G13: ='App.2-FA Proposed REG Invest.'!E46 -> 9000 | H13: =G13*H10 -> 540 | I13: =G13*I10 -> 8460 | J13: ='App.2-FA Proposed REG Invest.'!F46 -> 9000 | K13: =J13*K10 -> 540 | L13: =J13*L10 -> 8460 | M13: ='App.2-FA Proposed REG Invest.'!G46 -> 9000 | N13: =M13*N10 -> 540 | O13: =M13*O10 -> 8460 | P13: ='App.2-FA Proposed REG Invest.'!H46 -> 9000 | Q13: =P13*Q10 -> 540 | R13: =P13*R10 -> 8460 | S13: ='App.2-FA Proposed REG Invest.'!I46 -> 0 | T13: =S13*T10 -> 0 | U13: =S13*U10 -> 0 | V13: ='App.2-FA Proposed REG Invest.'!J46 -> 0 | W13: =V13*W10 -> 0 | X13: =V13*X10 -> 0 | Y13: ='App.2-FA Proposed REG Invest.'!K46 -> 0 | Z13: =Y13*Z10 -> 0 | AA13: =Y13*AA10 -> 0 | AB13: ='App.2-FA Proposed REG Invest.'!L46 -> 0 | AC13: =AB13*AC10 -> 0 | AD13: =AB13*AD10 -> 0 | AE13: ='App.2-FA Proposed REG Invest.'!M46 -> 0 | AF13: =AE13*AF10 -> 0 | AG13: =AE13*AG10 -> 0 | AH13: ='App.2-FA Proposed REG Invest.'!N46 -> 0 | AI13: =AH13*AI10 -> 0 | AJ13: =AH13*AJ10 -> 0 | AK13: ='App.2-FA Proposed REG Invest.'!O46 -> 0 | AL13: =AK13*AL10 -> 0 | AM13: =AK13*AM10 -> 0 | AN13: ='App.2-FA Proposed REG Invest.'!P46 -> 0 | AO13: =AN13*AO10 -> 0 | AP13: =AN13*AP10 -> 0 | AQ13: ='App.2-FA Proposed REG Invest.'!Q46 -> 0 | AR13: =AQ13*AR10 -> 0 | AS13: =AQ13*AS10 -> 0 | AT13: ='App.2-FA Proposed REG Invest.'!R46 -> 0 | AU13: =AT13*AU10 -> 0 | AV13: =AT13*AV10 -> 0 | AW13: ='App.2-FA Proposed REG Invest.'!S46 -> 0 | AX13: =AW13*AX10 -> 0 | AY13: =AW13*AY10 -> 0 | AZ13: ='App.2-FA Proposed REG Invest.'!T46 -> 0 | BA13: =AZ13*BA10 -> 0 | BB13: =AZ13*BB10 -> 0
A14: WCA | B14: 0.13 | E14: =(E12+E13)*$B$14 -> 24445.2 | F14: =F13*$B$14 -> 1099.8 | H14: =(H12+H13)*$B$14 -> 25875.2 | I14: =I13*$B$14 -> 1099.8 | K14: =(K12+K13)*$B$14 -> 25030.2 | L14: =L13*$B$14 -> 1099.8 | N14: =(N12+N13)*$B$14 -> 25810.2 | O14: =O13*$B$14 -> 1099.8 | Q14: =(Q12+Q13)*$B$14 -> 26590.2 | R14: =R13*$B$14 -> 1099.8 | T14: =(T12+T13)*$B$14 -> 0 | U14: =U13*$B$14 -> 0 | W14: =(W12+W13)*$B$14 -> 0 | X14: =X13*$B$14 -> 0 | Z14: =(Z12+Z13)*$B$14 -> 0 | AA14: =AA13*$B$14 -> 0 | AC14: =(AC12+AC13)*$B$14 -> 0 | AD14: =AD13*$B$14 -> 0 | AF14: =(AF12+AF13)*$B$14 -> 0 | AG14: =AG13*$B$14 -> 0 | AI14: =(AI12+AI13)*$B$14 -> 0 | AJ14: =AJ13*$B$14 -> 0 | AL14: =(AL12+AL13)*$B$14 -> 0 | AM14: =AM13*$B$14 -> 0 | AO14: =(AO12+AO13)*$B$14 -> 0 | AP14: =AP13*$B$14 -> 0 | AR14: =(AR12+AR13)*$B$14 -> 0 | AS14: =AS13*$B$14 -> 0 | AU14: =(AU12+AU13)*$B$14 -> 0 | AV14: =AV13*$B$14 -> 0 | AX14: =(AX12+AX13)*$B$14 -> 0 | AY14: =AY13*$B$14 -> 0 | BA14: =(BA12+BA13)*$B$14 -> 0 | BB14: =BB13*$B$14 -> 0
A15: Rate Base | E15: =SUM(E11+E14) -> 24445.2 | F15: =SUM(F11+F14) -> 1099.8 | H15: =SUM(H11+H14) -> 41175.2 | I15: =SUM(I11+I14) -> 240799.8 | K15: =SUM(K11+K14) -> 49690.2 | L15: =SUM(L11+L14) -> 387439.8 | N15: =SUM(N11+N14) -> 59110.2 | O15: =SUM(O11+O14) -> 522799.8 | Q15: =SUM(Q11+Q14) -> 67810.2 | R15: =SUM(R11+R14) -> 646879.8 | T15: =SUM(T11+T14) -> 43200 | U15: =SUM(U11+U14) -> 676800 | W15: =SUM(W11+W14) -> 39600 | X15: =SUM(X11+X14) -> 620400 | Z15: =SUM(Z11+Z14) -> 36000 | AA15: =SUM(AA11+AA14) -> 564000 | AC15: =SUM(AC11+AC14) -> 32400 | AD15: =SUM(AD11+AD14) -> 507600 | AF15: =SUM(AF11+AF14) -> 28800 | AG15: =SUM(AG11+AG14) -> 451200 | AI15: =SUM(AI11+AI14) -> 25200 | AJ15: =SUM(AJ11+AJ14) -> 394800 | AL15: =SUM(AL11+AL14) -> 21600 | AM15: =SUM(AM11+AM14) -> 338400 | AO15: =SUM(AO11+AO14) -> 18000 | AP15: 282000 | AR15: =SUM(AR11+AR14) -> 14400 | AS15: 225600 | AU15: =SUM(AU11+AU14) -> 10800 | AV15: 169200 | AX15: =SUM(AX11+AX14) -> 7200 | AY15: 112800 | BA15: =SUM(BA11+BA14) -> 3600 | BB15: 56400
A18: Deemed ST Debt | B18: 0.04 | E18: =E15*$B$18 -> 977.808 | F18: =F15*$B$18 -> 43.992 | H18: =H15*$B$18 -> 1647.008 | I18: =I15*$B$18 -> 9631.992 | K18: =K15*$B$18 -> 1987.608 | L18: =L15*$B$18 -> 15497.592 | N18: =N15*$B$18 -> 2364.408 | O18: =O15*$B$18 -> 20911.992 | Q18: =Q15*$B$18 -> 2712.408 | R18: =R15*$B$18 -> 25875.192 | T18: =T15*$B$18 -> 1728 | U18: =U15*$B$18 -> 27072 | W18: =W15*$B$18 -> 1584 | X18: =X15*$B$18 -> 24816 | Z18: =Z15*$B$18 -> 1440 | AA18: =AA15*$B$18 -> 22560 | AC18: =AC15*$B$18 -> 1296 | AD18: =AD15*$B$18 -> 20304 | AF18: =AF15*$B$18 -> 1152 | AG18: =AG15*$B$18 -> 18048 | AI18: =AI15*$B$18 -> 1008 | AJ18: =AJ15*$B$18 -> 15792 | AL18: =AL15*$B$18 -> 864 | AM18: =AM15*$B$18 -> 13536 | AO18: =AO15*$B$18 -> 720 | AP18: =AP15*$B$18 -> 11280 | AR18: =AR15*$B$18 -> 576 | AS18: =AS15*$B$18 -> 9024 | AU18: =AU15*$B$18 -> 432 | AV18: =AV15*$B$18 -> 6768 | AX18: =AX15*$B$18 -> 288 | AY18: =AY15*$B$18 -> 4512 | BA18: =BA15*$B$18 -> 144 | BB18: =BB15*$B$18 -> 2256
A19: Deemed LT Debt | B19: 0.56 | E19: =E15*$B$19 -> 13689.312 | F19: =F15*$B$19 -> 615.888 | H19: =H15*$B$19 -> 23058.112 | I19: =I15*$B$19 -> 134847.888 | K19: =K15*$B$19 -> 27826.512 | L19: =L15*$B$19 -> 216966.288 | N19: =N15*$B$19 -> 33101.712 | O19: =O15*$B$19 -> 292767.888 | Q19: =Q15*$B$19 -> 37973.712 | R19: =R15*$B$19 -> 362252.688 | T19: =T15*$B$19 -> 24192 | U19: =U15*$B$19 -> 379008 | W19: =W15*$B$19 -> 22176 | X19: =X15*$B$19 -> 347424 | Z19: =Z15*$B$19 -> 20160 | AA19: =AA15*$B$19 -> 315840 | AC19: =AC15*$B$19 -> 18144 | AD19: =AD15*$B$19 -> 284256 | AF19: =AF15*$B$19 -> 16128 | AG19: =AG15*$B$19 -> 252672 | AI19: =AI15*$B$19 -> 14112 | AJ19: =AJ15*$B$19 -> 221088 | AL19: =AL15*$B$19 -> 12096 | AM19: =AM15*$B$19 -> 189504 | AO19: =AO15*$B$19 -> 10080 | AP19: =AP15*$B$19 -> 157920 | AR19: =AR15*$B$19 -> 8064 | AS19: =AS15*$B$19 -> 126336 | AU19: =AU15*$B$19 -> 6048 | AV19: =AV15*$B$19 -> 94752 | AX19: =AX15*$B$19 -> 4032 | AY19: =AY15*$B$19 -> 63168 | BA19: =BA15*$B$19 -> 2016 | BB19: =BB15*$B$19 -> 31584
A20: Deemed Equity | B20: 0.4 | E20: =E15*$B$20 -> 9778.08 | F20: =F15*$B$20 -> 439.92 | H20: =H15*$B$20 -> 16470.08 | I20: =I15*$B$20 -> 96319.92 | K20: =K15*$B$20 -> 19876.08 | L20: =L15*$B$20 -> 154975.92 | N20: =N15*$B$20 -> 23644.08 | O20: =O15*$B$20 -> 209119.92 | Q20: =Q15*$B$20 -> 27124.08 | R20: =R15*$B$20 -> 258751.92 | T20: =T15*$B$20 -> 17280 | U20: =U15*$B$20 -> 270720 | W20: =W15*$B$20 -> 15840 | X20: =X15*$B$20 -> 248160 | Z20: =Z15*$B$20 -> 14400 | AA20: =AA15*$B$20 -> 225600 | AC20: =AC15*$B$20 -> 12960 | AD20: =AD15*$B$20 -> 203040 | AF20: =AF15*$B$20 -> 11520 | AG20: =AG15*$B$20 -> 180480 | AI20: =AI15*$B$20 -> 10080 | AJ20: =AJ15*$B$20 -> 157920 | AL20: =AL15*$B$20 -> 8640 | AM20: =AM15*$B$20 -> 135360 | AO20: =AO15*$B$20 -> 7200 | AP20: =AP15*$B$20 -> 112800 | AR20: =AR15*$B$20 -> 5760 | AS20: =AS15*$B$20 -> 90240 | AU20: =AU15*$B$20 -> 4320 | AV20: =AV15*$B$20 -> 67680 | AX20: =AX15*$B$20 -> 2880 | AY20: =AY15*$B$20 -> 45120 | BA20: =BA15*$B$20 -> 1440 | BB20: =BB15*$B$20 -> 22560
A22: ST Interest | B22: 0.0216 | E22: =E18*$B22 -> 21.1206528 | F22: =F18*$B22 -> 0.9502272 | H22: =H18*$B22 -> 35.5753728 | I22: =I18*$B22 -> 208.0510272 | K22: =K18*$B22 -> 42.9323328 | L22: =L18*$B22 -> 334.7479872 | N22: =N18*$B22 -> 51.0712128 | O22: =O18*$B22 -> 451.6990272 | Q22: =Q18*$B22 -> 58.5880128 | R22: =R18*$B22 -> 558.9041472 | T22: =T18*$B22 -> 37.3248 | U22: =U18*$B22 -> 584.7552 | W22: =W18*$B22 -> 34.2144 | X22: =X18*$B22 -> 536.0256 | Z22: =Z18*$B22 -> 31.104 | AA22: =AA18*$B22 -> 487.296 | AC22: =AC18*$B22 -> 27.9936 | AD22: 438.5664 | AF22: =AF18*$B22 -> 24.8832 | AG22: 389.8368 | AI22: =AI18*$B22 -> 21.7728 | AJ22: =AJ18*$B22 -> 341.1072 | AL22: =AL18*$B22 -> 18.6624 | AM22: =AM18*$B22 -> 292.3776 | AO22: =AO18*AO3 -> 28.152 | AP22: =AP18*AO3 -> 441.048 | AR22: =AR18*AR3 -> 22.5216 | AS22: =AS18*AR3 -> 352.8384 | AU22: =AU18*AU3 -> 16.8912 | AV22: =AV18*AU3 -> 264.6288 | AX22: =AX18*AX3 -> 11.2608 | AY22: =AY18*AX3 -> 176.4192 | BA22: =BA18*BA3 -> 5.6304 | BB22: =BB18*BA3 -> 88.2096
A23: LT Interest | B23: 0.06072871046 | E23: =E19*$B23 -> 831.3342649 | F23: 37.40208403 | H23: =H19*$B23 -> 1400.289407 | I23: 8189.138347 | K23: =K19*$B23 -> 1689.86819 | L23: 13176.08288 | N23: =N19*$B23 -> 2010.224284 | O23: 17779.4163 | Q23: =Q19*$B23 -> 2306.094561 | R23: 21999.1386 | T23: =T19*$B23 -> 1469.148964 | U23: 23016.66709 | W23: =W19*$B23 -> 1346.719883 | X23: 21098.6115 | Z23: =Z19*$B23 -> 1224.290803 | AA23: 19180.55591 | AC23: 1101.861723 | AD23: 17262.50032 | AF23: 979.4326423 | AG23: 15344.44473 | AI23: =AI19*$B23 -> 857.003562 | AJ23: 13426.38914 | AL23: =AL19*$B23 -> 734.5744818 | AM23: 11508.33355 | AO23: =AO19*AO4 -> 422.352 | AP23: =AP19*AO4 -> 6616.848 | AR23: =AR19*AR4 -> 350.784 | AS23: =AS19*AR4 -> 5495.616 | AU23: =AU19*AU4 -> 263.6928 | AV23: =AV19*AU4 -> 4131.1872 | AX23: =AX19*AX4 -> 176.1984 | AY23: =AY19*AX4 -> 2760.4416 | BA23: =BA19*BA4 -> 90.9216 | BB23: =BB19*BA4 -> 1424.4384
A24: ROE | B24: 0.093 | E24: 909.36144 | F24: 40.91256 | H24: 1531.71744 | I24: 8957.75256 | K24: 1848.47544 | L24: 14412.76056 | N24: 2198.89944 | O24: 19448.15256 | Q24: 2522.53944 | R24: 24063.92856 | T24: =T20*$B24 -> 1607.04 | U24: 25176.96 | W24: =W20*$B24 -> 1473.12 | X24: 23078.88 | Z24: =Z20*$B24 -> 1339.2 | AA24: 20980.8 | AC24: 1205.28 | AD24: 18882.72 | AF24: 1071.36 | AG24: 16784.64 | AI24: =AI20*$B24 -> 937.44 | AJ24: 14686.56 | AL24: =AL20*$B24 -> 803.52 | AM24: 12588.48 | AO24: =AO20*AO5 -> 648 | AP24: =AP20*AO5 -> 10152 | AR24: =AR20*AR5 -> 518.4 | AS24: =AS20*AR5 -> 8121.6 | AU24: =AU20*AU5 -> 388.8 | AV24: =AV20*AU5 -> 6091.2 | AX24: =AX20*AX5 -> 259.2 | AY24: =AY20*AX5 -> 4060.8 | BA24: =BA20*BA5 -> 129.6 | BB24: =BB20*BA5 -> 2030.4
A25: Cost of Capital Total | E25: =SUM(E22:E24) -> 1761.816358 | F25: =SUM(F22:F24) -> 79.26487123 | H25: =SUM(H22:H24) -> 2967.58222 | I25: =SUM(I22:I24) -> 17354.94193 | K25: =SUM(K22:K24) -> 3581.275963 | L25: =SUM(L22:L24) -> 27923.59143 | N25: =SUM(N22:N24) -> 4260.194937 | O25: =SUM(O22:O24) -> 37679.26789 | Q25: =SUM(Q22:Q24) -> 4887.222014 | R25: =SUM(R22:R24) -> 46621.97131 | T25: =SUM(T22:T24) -> 3113.513764 | U25: =SUM(U22:U24) -> 48778.38229 | W25: =SUM(W22:W24) -> 2854.054283 | X25: =SUM(X22:X24) -> 44713.5171 | Z25: =SUM(Z22:Z24) -> 2594.594803 | AA25: =SUM(AA22:AA24) -> 40648.65191 | AC25: =SUM(AC22:AC24) -> 2335.135323 | AD25: =SUM(AD22:AD24) -> 36583.78672 | AF25: =SUM(AF22:AF24) -> 2075.675842 | AG25: =SUM(AG22:AG24) -> 32518.92153 | AI25: =SUM(AI22:AI24) -> 1816.216362 | AJ25: =SUM(AJ22:AJ24) -> 28454.05634 | AL25: =SUM(AL22:AL24) -> 1556.756882 | AM25: =SUM(AM22:AM24) -> 24389.19115 | AO25: =SUM(AO22:AO24) -> 1098.504 | AP25: 17209.896 | AR25: =SUM(AR22:AR24) -> 891.7056 | AS25: 13970.0544 | AU25: =SUM(AU22:AU24) -> 669.384 | AV25: 10487.016 | AX25: =SUM(AX22:AX24) -> 446.6592 | AY25: 6997.6608 | BA25: =SUM(BA22:BA24) -> 226.152 | BB25: 3543.048
A27: OM&A | E27: =E12+E13 -> 188040 | F27: =F13 -> 8460 | H27: =H12+H13 -> 199040 | I27: =I13 -> 8460 | K27: =K12+K13 -> 192540 | L27: =L13 -> 8460 | N27: =N12+N13 -> 198540 | O27: =O13 -> 8460 | Q27: =Q12+Q13 -> 204540 | R27: =R13 -> 8460 | T27: =T12+T13 -> 0 | U27: =U13 -> 0 | W27: =W12+W13 -> 0 | X27: =X13 -> 0 | Z27: =Z12+Z13 -> 0 | AA27: =AA13 -> 0 | AC27: =AC12+AC13 -> 0 | AD27: =AD13 -> 0 | AF27: =AF12+AF13 -> 0 | AG27: =AG13 -> 0 | AI27: =AI12+AI13 -> 0 | AJ27: =AJ13 -> 0 | AL27: =AL12+AL13 -> 0 | AM27: =AM13 -> 0 | AO27: =AO12+AO13 -> 0 | AP27: =AP13 -> 0 | AR27: =AR12+AR13 -> 0 | AS27: =AS13 -> 0 | AU27: =AU12+AU13 -> 0 | AV27: =AV13 -> 0 | AX27: =AX12+AX13 -> 0 | AY27: =AY13 -> 0 | BA27: =BA12+BA13 -> 0 | BB27: =BB13 -> 0
A28: Amortization | D28: =D70 -> 6000 | E28: =D28*E$10 -> 360 | F28: =D28*F$10 -> 5640 | G28: =E69+E70 -> 18000 | H28: =G28*H$10 -> 1080 | I28: =G28*I$10 -> 16920 | J28: =F69+F70 -> 30000 | K28: =J28*K$10 -> 1800 | L28: =J28*L$10 -> 28200 | M28: =G69+G70 -> 42000 | N28: =M28*N$10 -> 2520 | O28: =M28*O$10 -> 39480 | P28: =H69+H70 -> 54000 | Q28: =P28*Q$10 -> 3240 | R28: =P28*R$10 -> 50760 | S28: =I69+I70 -> 60000 | T28: =S28*T$10 -> 3600 | U28: =S28*U$10 -> 56400 | V28: =J69+J70 -> 60000 | W28: =V28*W$10 -> 3600 | X28: =V28*X$10 -> 56400 | Y28: =K69+K70 -> 60000 | Z28: =Y28*Z$10 -> 3600 | AA28: =Y28*AA$10 -> 56400 | AB28: =L69+L70 -> 60000 | AC28: =AB28*AC$10 -> 3600 | AD28: =AB28*AD$10 -> 56400 | AE28: =M69+M70 -> 60000 | AF28: =AE28*AF$10 -> 3600 | AG28: =AE28*AG$10 -> 56400 | AH28: =N69+N70 -> 60000 | AI28: =AH28*AI$10 -> 3600 | AJ28: =AH28*AJ$10 -> 56400 | AK28: =O69+O70 -> 60000 | AL28: =AK28*AL$10 -> 3600 | AM28: =AK28*AM$10 -> 56400 | AN28: =P69+P70 -> 60000 | AO28: =AN28*AO$10 -> 3600 | AP28: =AN28*AP$10 -> 56400 | AQ28: =Q69+Q70 -> 60000 | AR28: =AQ28*AR$10 -> 3600 | AS28: =AQ28*AS$10 -> 56400 | AT28: =R69+R70 -> 60000 | AU28: =AT28*AU$10 -> 3600 | AV28: =AT28*AV$10 -> 56400 | AW28: =S69+S70 -> 60000 | AX28: =AW28*AX$10 -> 3600 | AY28: =AW28*AY$10 -> 56400 | AZ28: =T69+T70 -> 60000 | BA28: =AZ28*BA$10 -> 3600 | BB28: =AZ28*BB$10 -> 56400
A29: Grossed-up PILs | E29: =E55 -> 301.9058253 | F29: =F55 -> -391.9430906 | H29: =H55 -> 486.8347233 | I29: =I55 -> 2204.797318 | K29: =K55 -> 585.5060131 | L29: =L55 -> 3928.203293 | N29: =N55 -> 718.3254495 | O29: =O55 -> 5845.143497 | Q29: =Q55 -> 861.7373293 | R29: =R55 -> 7928.031983 | T29: =T55 -> 602.9731519 | U29: =U55 -> 9446.579379 | W29: =W55 -> 656.6406711 | X29: =X55 -> 10287.37051 | Z29: =Z55 -> 702.1520624 | AA29: =AA55 -> 11000.38231 | AC29: =AC55 -> 740.1598157 | AD29: =AD55 -> 11595.83711 | AF29: =AF55 -> 771.2642223 | AG29: =AG55 -> 12083.13948 | AI29: =AI55 -> 796.0175498 | AJ29: =AJ55 -> 12470.94161 | AL29: =AL55 -> 814.9278846 | AM29: =AM55 -> 12767.20353 | AO29: =AO55 -> 820.674911 | AP29: =AP55 -> 12857.24027 | AR29: =AR55 -> 830.8217344 | AS29: =AS55 -> 13016.20717 | AU29: =AU55 -> 836.4186896 | AV29: 13103.8928 | AX29: =AX55 -> 837.8297658 | AY29: 13125.99966 | BA29: =BA55 -> 835.3898335 | BB29: 13087.77406
A31: Revenue Requirement | E31: =SUM(E25:E29) -> 190463.7222 | F31: =SUM(F25:F29) -> 13787.32178 | H31: =SUM(H25:H29) -> 203574.4169 | I31: =SUM(I25:I29) -> 44939.73925 | K31: =SUM(K25:K29) -> 198506.782 | L31: =SUM(L25:L29) -> 68511.79472 | N31: =SUM(N25:N29) -> 206038.5204 | O31: =SUM(O25:O29) -> 91464.41139 | Q31: =SUM(Q25:Q29) -> 213528.9593 | R31: =SUM(R25:R29) -> 113770.0033 | T31: =SUM(T25:T29) -> 7316.486915 | U31: =SUM(U25:U29) -> 114624.9617 | W31: =SUM(W25:W29) -> 7110.694954 | X31: =SUM(X25:X29) -> 111400.8876 | Z31: =SUM(Z25:Z29) -> 6896.746865 | AA31: =SUM(AA25:AA29) -> 108049.0342 | AC31: =SUM(AC25:AC29) -> 6675.295138 | AD31: =SUM(AD25:AD29) -> 104579.6238 | AF31: =SUM(AF25:AF29) -> 6446.940065 | AG31: =SUM(AG25:AG29) -> 101002.061 | AI31: =SUM(AI25:AI29) -> 6212.233912 | AJ31: =SUM(AJ25:AJ29) -> 97324.99795 | AL31: =SUM(AL25:AL29) -> 5971.684766 | AM31: =SUM(AM25:AM29) -> 93556.39467 | AO31: =SUM(AO25:AO29) -> 5519.178911 | AP31: 86467.13627 | AR31: =SUM(AR25:AR29) -> 5322.527334 | AS31: 83386.26157 | AU31: =SUM(AU25:AU29) -> 5105.80269 | AV31: 79990.9088 | AX31: =SUM(AX25:AX29) -> 4884.488966 | AY31: 76523.66046 | BA31: =SUM(BA25:BA29) -> 4661.541834 | BB31: 73030.82206
A34: Provincial Rate Protection | F34: =F31 -> 13787.32178 | I34: =I31 -> 44939.73925 | L34: =L31 -> 68511.79472 | O34: =O31 -> 91464.41139 | R34: =R31 -> 113770.0033 | U34: =U31 -> 114624.9617 | X34: =X31 -> 111400.8876 | AA34: =AA31 -> 108049.0342 | AD34: =AD31 -> 104579.6238 | AG34: =AG31 -> 101002.061 | AJ34: =AJ31 -> 97324.99795 | AM34: =AM31 -> 93556.39467 | AP34: =AP31 -> 86467.13627 | AS34: =AS31 -> 83386.26157 | AV34: =AV31 -> 79990.9088 | AY34: =AY31 -> 76523.66046 | BB34: =BB31 -> 73030.82206
A36: Monthly Amount Paid by IESO | F36: =F34/12 -> 1148.943482 | I36: =I34/12 -> 3744.978271 | L36: =L34/12 -> 5709.316227 | O36: =O34/12 -> 7622.034282 | R36: =R34/12 -> 9480.833608 | U36: =U34/12 -> 9552.08014 | X36: =X34/12 -> 9283.407302 | AA36: =AA34/12 -> 9004.086185 | AD36: =AD34/12 -> 8714.968653 | AG36: =AG34/12 -> 8416.838418 | AJ36: =AJ34/12 -> 8110.416496 | AM36: =AM34/12 -> 7796.366223 | AP36: =AP34/12 -> 7205.594689 | AS36: =AS34/12 -> 6948.855131 | AV36: =AV34/12 -> 6665.909067 | AY36: =AY34/12 -> 6376.971705 | BB36: =BB34/12 -> 6085.901838
A38: Note 1: The difference between the actual costs of approved eligible investments and revenue received from the IESO should be recorded in a variance account. The Board regulatory accounting guidance regarding a variance account either in an individual proceeding or on a generic basis.
A39: Note 2: For the 2014 Test Year, Costs and Revenues of the Direct Benefit are to be included in the test year applicant Rate Base and Revenues. | F39: =+F34+'App.2-FC Calc of REG Expansion'!F35 -> 25655.17059 | I39: =+I34+'App.2-FC Calc of REG Expansion'!I35 -> 60710.61523 | L39: =+L34+'App.2-FC Calc of REG Expansion'!L35 -> 89741.10887 | O39: =+O34+'App.2-FC Calc of REG Expansion'!O35 -> 118291.1392 | R39: =+R34+'App.2-FC Calc of REG Expansion'!R35 -> 146324.1067 | U39: =+U34+'App.2-FC Calc of REG Expansion'!U35 -> 143581.9879 | X39: =+X34+'App.2-FC Calc of REG Expansion'!X35 -> 140272.3844 | AA39: =+AA34+'App.2-FC Calc of REG Expansion'!AA35 -> 136786.5013 | AD39: =+AD34+'App.2-FC Calc of REG Expansion'!AD35 -> 133138.4411 | AG39: =+AG34+'App.2-FC Calc of REG Expansion'!AG35 -> 129341.1779 | AJ39: =+AJ34+'App.2-FC Calc of REG Expansion'!AJ35 -> 124221.7243 | AM39: =+AM34+'App.2-FC Calc of REG Expansion'!AM35 -> 120237.7736 | AP39: =+AP34+'App.2-FC Calc of REG Expansion'!AP35+'Trueup Calculation 2015-2026'!D15 -> 111282.065 | AS39: =+AS34+'App.2-FC Calc of REG Expansion'!AS35 -> 107035.9773 | AV39: =+AV34+'App.2-FC Calc of REG Expansion'!AV35 -> 103425.8273 | AY39: =+AY34+'App.2-FC Calc of REG Expansion'!AY35 -> 99718.08496 | BB39: =+BB34+'App.2-FC Calc of REG Expansion'!BB35 -> 96117.87241
F40: =+F36+'App.2-FC Calc of REG Expansion'!F37 -> 2137.930883 | I40: =+I36+'App.2-FC Calc of REG Expansion'!I37 -> 5059.217936 | L40: =+L36+'App.2-FC Calc of REG Expansion'!L37 -> 7478.425739 | O40: =+O36+'App.2-FC Calc of REG Expansion'!O37 -> 9857.59493 | R40: =+R36+'App.2-FC Calc of REG Expansion'!R37 -> 12193.67556 | U40: =+U36+'App.2-FC Calc of REG Expansion'!U37 -> 11965.16566 | X40: =+X36+'App.2-FC Calc of REG Expansion'!X37 -> 11689.36536 | AA40: =+AA36+'App.2-FC Calc of REG Expansion'!AA37 -> 11398.87511 | AD40: =+AD36+'App.2-FC Calc of REG Expansion'!AD37 -> 11094.87009 | AG40: =+AG36+'App.2-FC Calc of REG Expansion'!AG37 -> 10778.43149 | AJ40: =+AJ36+'App.2-FC Calc of REG Expansion'!AJ37 -> 10351.81036 | AM40: =+AM36+'App.2-FC Calc of REG Expansion'!AM37 -> 10019.81446 | AP40: =+AP36+'App.2-FC Calc of REG Expansion'!AP37 -> 9174.888812 | AS40: =+AS36+'App.2-FC Calc of REG Expansion'!AS37 -> 8919.664771 | AV40: =+AV36+'App.2-FC Calc of REG Expansion'!AV37 -> 8618.818944 | AY40: =+AY36+'App.2-FC Calc of REG Expansion'!AY37 -> 8309.840414 | BB40: =+BB36+'App.2-FC Calc of REG Expansion'!BB37 -> 8009.822701
A41: PILs Calculation
E42: 2015 | H42: 2016 | K42: 2017 | N42: 2018 | Q42: 2019 | T42: 2020 | W42: =V8 -> 2021 | Z42: =Y8 -> 2022 | AC42: =AB8 -> 2023 | AF42: =AE8 -> 2024 | AI42: =AH8 -> 2025 | AL42: =AK8 -> 2026 | AO42: =AN8 -> 2027 | AR42: =AQ8 -> 2028 | AU42: =AT8 -> 2029 | AX42: =AW8 -> 2030 | BA42: =AZ8 -> 2031
A43: Income Tax | E43: Direct Benefit | F43: Provincial | H43: Direct Benefit | I43: Provincial | K43: Direct Benefit | L43: Provincial | N43: Direct Benefit | O43: Provincial | Q43: Direct Benefit | R43: Provincial | T43: Direct Benefit | U43: Provincial | W43: Direct Benefit | X43: Provincial | Z43: Direct Benefit | AA43: Provincial | AC43: Direct Benefit | AD43: Provincial | AF43: Direct Benefit | AG43: Provincial | AI43: Direct Benefit | AJ43: Provincial | AL43: Direct Benefit | AM43: Provincial | AO43: Direct Benefit | AP43: Provincial | AR43: Direct Benefit | AS43: Provincial | AU43: Direct Benefit | AV43: Provincial | AX43: Direct Benefit | AY43: Provincial | BA43: Direct Benefit | BB43: Provincial
M44: Total | P44: Total | S44: Total | V44: Total | Y44: Total | AB44: Total | AE44: Total | AH44: Total | AK44: Total | AN44: Total | AQ44: Total | AT44: Total | AW44: Total | AZ44: Total
A45: Net Income - ROE on Rate Base | E45: =E24 -> 909.36144 | F45: =F24 -> 40.91256 | H45: =H24 -> 1531.71744 | I45: =I24 -> 8957.75256 | K45: =K24 -> 1848.47544 | L45: =L24 -> 14412.76056 | N45: =N24 -> 2198.89944 | O45: =O24 -> 19448.15256 | Q45: =Q24 -> 2522.53944 | R45: =R24 -> 24063.92856 | T45: =T24 -> 1607.04 | U45: =U24 -> 25176.96 | W45: =W24 -> 1473.12 | X45: =X24 -> 23078.88 | Z45: =Z24 -> 1339.2 | AA45: =AA24 -> 20980.8 | AC45: =AC24 -> 1205.28 | AD45: =AD24 -> 18882.72 | AF45: =AF24 -> 1071.36 | AG45: =AG24 -> 16784.64 | AI45: =AI24 -> 937.44 | AJ45: =AJ24 -> 14686.56 | AL45: =AL24 -> 803.52 | AM45: =AM24 -> 12588.48 | AO45: =AO24 -> 648 | AP45: =AP24 -> 10152 | AR45: =AR24 -> 518.4 | AS45: 8121.6 | AU45: =AU24 -> 388.8 | AV45: 6091.2 | AX45: =AX24 -> 259.2 | AY45: 4060.8 | BA45: =BA24 -> 129.6 | BB45: 2030.4
A46: Amortization (6% DB and 94% P) | E46: =E28 -> 360 | F46: =F28 -> 5640 | H46: =H28 -> 1080 | I46: =I28 -> 16920 | K46: =K28 -> 1800 | L46: =L28 -> 28200 | N46: =N28 -> 2520 | O46: =O28 -> 39480 | Q46: =Q28 -> 3240 | R46: =R28 -> 50760 | T46: =T28 -> 3600 | U46: =U28 -> 56400 | W46: =W28 -> 3600 | X46: =X28 -> 56400 | Z46: =Z28 -> 3600 | AA46: =AA28 -> 56400 | AC46: =AC28 -> 3600 | AD46: =AD28 -> 56400 | AF46: =AF28 -> 3600 | AG46: =AG28 -> 56400 | AI46: =AI28 -> 3600 | AJ46: =AJ28 -> 56400 | AL46: =AL28 -> 3600 | AM46: =AM28 -> 56400 | AO46: =AO28 -> 3600 | AP46: =AP28 -> 56400 | AR46: =AR28 -> 3600 | AS46: 56400 | AU46: =AU28 -> 3600 | AV46: 56400 | AX46: =AX28 -> 3600 | AY46: 56400 | BA46: =BA28 -> 3600 | BB46: 56400
A47: CCA (6% DB and 94% P) | E47: =-D87*E$10 -> -432 | F47: =-D87*F$10 -> -6768 | H47: =-E87*H$10 -> -1261.44 | I47: =-E87*I$10 -> -19762.56 | K47: =-F87*K$10 -> -2024.5248 | L47: =-F87*L$10 -> -31717.5552 | N47: =-G87*N$10 -> -2726.562816 | O47: =-G87*O$10 -> -42716.15078 | Q47: =-H87*Q$10 -> -3372.437791 | R47: =-H87*R$10 -> -52834.85872 | T47: =-I87*T$10 -> -3534.642767 | U47: =-I87*U$10 -> -55376.07002 | W47: =-J87*W$10 -> -3251.871346 | X47: =-J87*X$10 -> -50945.98442 | Z47: =-K87*Z$10 -> -2991.721638 | AA47: =-K87*AA$10 -> -46870.30567 | AC47: =-L87*AC$10 -> -2752.383907 | AD47: =-L87*AD$10 -> -43120.68121 | AF47: =-M87*AF$10 -> -2532.193195 | AG47: =-M87*AG$10 -> -39671.02672 | AI47: =-N87*AI$10 -> -2329.617739 | AJ47: =-N87*AJ$10 -> -36497.34458 | AL47: =-O87*AL$10 -> -2143.24832 | AM47: =-O87*AM$10 -> -33577.55701 | AO47: =-P87*AO$10 -> -1971.788454 | AP47: =-P87*AP$10 -> -30891.35245 | AR47: =-Q87*AR$10 -> -1814.045378 | AS47: =-Q87*AS$10 -> -28420.04426 | AU47: =-R87*AU$10 -> -1668.921748 | AV47: =-R87*AV$10 -> -26146.44072 | AX47: =-S87*AX$10 -> -1535.408008 | AY47: =-S87*AY$10 -> -24054.72546 | BA47: =-T87*BA$10 -> -1412.575367 | BB47: =-T87*BB$10 -> -22130.34742
A48: Taxable income | E48: =SUM(E45:E47) -> 837.36144 | F48: =SUM(F45:F47) -> -1087.08744 | H48: =SUM(H45:H47) -> 1350.27744 | I48: =SUM(I45:I47) -> 6115.19256 | K48: =SUM(K45:K47) -> 1623.95064 | L48: =SUM(L45:L47) -> 10895.20536 | N48: =SUM(N45:N47) -> 1992.336624 | O48: =SUM(O45:O47) -> 16212.00178 | Q48: =SUM(Q45:Q47) -> 2390.101649 | R48: =SUM(R45:R47) -> 21989.06984 | T48: =SUM(T45:T47) -> 1672.397233 | U48: =SUM(U45:U47) -> 26200.88998 | W48: =SUM(W45:W47) -> 1821.248654 | X48: =SUM(X45:X47) -> 28532.89558 | Z48: =SUM(Z45:Z47) -> 1947.478362 | AA48: =SUM(AA45:AA47) -> 30510.49433 | AC48: =SUM(AC45:AC47) -> 2052.896093 | AD48: =SUM(AD45:AD47) -> 32162.03879 | AF48: =SUM(AF45:AF47) -> 2139.166805 | AG48: =SUM(AG45:AG47) -> 33513.61328 | AI48: =SUM(AI45:AI47) -> 2207.822261 | AJ48: =SUM(AJ45:AJ47) -> 34589.21542 | AL48: =SUM(AL45:AL47) -> 2260.27168 | AM48: =SUM(AM45:AM47) -> 35410.92299 | AO48: =SUM(AO45:AO47) -> 2276.211546 | AP48: 35660.64755 | AR48: =SUM(AR45:AR47) -> 2304.354622 | AS48: 36101.55574 | AU48: =SUM(AU45:AU47) -> 2319.878252 | AV48: 36344.75928 | AX48: =SUM(AX45:AX47) -> 2323.791992 | AY48: 36406.07454 | BA48: =SUM(BA45:BA47) -> 2317.024633 | BB48: 36300.05258
A50: Tax Rate (to be entered) | E50: 0.265 | F50: 0.265 | H50: 0.265 | I50: 0.265 | K50: 0.265 | L50: 0.265 | N50: 0.265 | O50: 0.265 | Q50: 0.265 | R50: 0.265 | T50: 0.265 | U50: 0.265 | W50: 0.265 | X50: 0.265 | Z50: 0.265 | AA50: 0.265 | AC50: 0.265 | AD50: 0.265 | AF50: 0.265 | AG50: 0.265 | AI50: 0.265 | AJ50: 0.265 | AL50: 0.265 | AM50: 0.265 | AO50: 0.265 | AP50: 0.265 | AR50: 0.265 | AS50: 0.265 | AU50: 0.265 | AV50: 0.265 | AX50: 0.265 | AY50: 0.265 | BA50: 0.265 | BB50: 0.265
A52: Income Taxes Payable | E52: =E48*E50 -> 221.9007816 | F52: =F48*F50 -> -288.0781716 | H52: =H48*H50 -> 357.8235216 | I52: =I48*I50 -> 1620.526028 | K52: =K48*K50 -> 430.3469196 | L52: =L48*L50 -> 2887.22942 | N52: =N48*N50 -> 527.9692054 | O52: =O48*O50 -> 4296.180471 | Q52: =Q48*Q50 -> 633.3769371 | R52: =R48*R50 -> 5827.103507 | T52: =T48*T50 -> 443.1852666 | U52: =U48*U50 -> 6943.235844 | W52: =W48*W50 -> 482.6308933 | X52: =X48*X50 -> 7561.217328 | Z52: =Z48*Z50 -> 516.0817658 | AA52: =AA48*AA50 -> 8085.280998 | AC52: =AC48*AC50 -> 544.0174646 | AD52: =AD48*AD50 -> 8522.940278 | AF52: =AF48*AF50 -> 566.8792034 | AG52: =AG48*AG50 -> 8881.10752 | AI52: =AI48*AI50 -> 585.0728991 | AJ52: =AJ48*AJ50 -> 9166.142086 | AL52: =AL48*AL50 -> 598.9719952 | AM52: =AM48*AM50 -> 9383.894591 | AO52: =AO48*AO50 -> 603.1960596 | AP52: =AP48*AP50 -> 9450.0716 | AR52: =AR48*AR50 -> 610.6539748 | AS52: 9566.912272 | AU52: =AU48*AU50 -> 614.7677368 | AV52: 9631.36121 | AX52: =AX48*AX50 -> 615.8048779 | AY52: 9647.609753 | BA52: =BA48*BA50 -> 614.0115277 | BB52: 9619.513933
A53: Gross Up
A54: Income Taxes Payable | E54: =E52/(1-E50) -> 301.9058253 | F54: =F52/(1-F50) -> -391.9430906 | H54: =H52/(1-H50) -> 486.8347233 | I54: =I52/(1-I50) -> 2204.797318 | K54: =K52/(1-K50) -> 585.5060131 | L54: =L52/(1-L50) -> 3928.203293 | N54: =N52/(1-N50) -> 718.3254495 | O54: =O52/(1-O50) -> 5845.143497 | Q54: =Q52/(1-Q50) -> 861.7373293 | R54: =R52/(1-R50) -> 7928.031983 | T54: =T52/(1-T50) -> 602.9731519 | U54: =U52/(1-U50) -> 9446.579379 | W54: =W52/(1-W50) -> 656.6406711 | X54: =X52/(1-X50) -> 10287.37051 | Z54: =Z52/(1-Z50) -> 702.1520624 | AA54: =AA52/(1-AA50) -> 11000.38231 | AC54: =AC52/(1-AC50) -> 740.1598157 | AD54: =AD52/(1-AD50) -> 11595.83711 | AF54: =AF52/(1-AF50) -> 771.2642223 | AG54: =AG52/(1-AG50) -> 12083.13948 | AI54: =AI52/(1-AI50) -> 796.0175498 | AJ54: =AJ52/(1-AJ50) -> 12470.94161 | AL54: =AL52/(1-AL50) -> 814.9278846 | AM54: =AM52/(1-AM50) -> 12767.20353 | AO54: =AO52/(1-AO50) -> 820.674911 | AP54: =AP52/(1-AP50) -> 12857.24027 | AR54: =AR52/(1-AR50) -> 830.8217344 | AS54: 13016.20717 | AU54: =AU52/(1-AU50) -> 836.4186896 | AV54: 13103.8928 | AX54: =AX52/(1-AX50) -> 837.8297658 | AY54: 13125.99966 | BA54: =BA52/(1-BA50) -> 835.3898335 | BB54: 13087.77406
A55: Grossed Up PILs | E55: =SUM(E54:E54) -> 301.9058253 | F55: =SUM(F54:F54) -> -391.9430906 | H55: =SUM(H54:H54) -> 486.8347233 | I55: =SUM(I54:I54) -> 2204.797318 | K55: =SUM(K54:K54) -> 585.5060131 | L55: =SUM(L54:L54) -> 3928.203293 | N55: =SUM(N54:N54) -> 718.3254495 | O55: =SUM(O54:O54) -> 5845.143497 | Q55: =SUM(Q54:Q54) -> 861.7373293 | R55: =SUM(R54:R54) -> 7928.031983 | T55: =SUM(T54:T54) -> 602.9731519 | U55: =SUM(U54:U54) -> 9446.579379 | W55: =SUM(W54:W54) -> 656.6406711 | X55: =SUM(X54:X54) -> 10287.37051 | Z55: =SUM(Z54:Z54) -> 702.1520624 | AA55: =SUM(AA54:AA54) -> 11000.38231 | AC55: =SUM(AC54:AC54) -> 740.1598157 | AD55: =SUM(AD54:AD54) -> 11595.83711 | AF55: =SUM(AF54:AF54) -> 771.2642223 | AG55: =SUM(AG54:AG54) -> 12083.13948 | AI55: =SUM(AI54:AI54) -> 796.0175498 | AJ55: =SUM(AJ54:AJ54) -> 12470.94161 | AL55: =SUM(AL54:AL54) -> 814.9278846 | AM55: =SUM(AM54:AM54) -> 12767.20353 | AO55: =SUM(AO54:AO54) -> 820.674911 | AP55: =SUM(AP54:AP54) -> 12857.24027 | AR55: =SUM(AR54:AR54) -> 830.8217344 | AS55: 13016.20717 | AU55: =SUM(AU54:AU54) -> 836.4186896 | AV55: 13103.8928 | AX55: =SUM(AX54:AX54) -> 837.8297658 | AY55: 13125.99966 | BA55: =SUM(BA54:BA54) -> 835.3898335 | BB55: 13087.77406
A58: Appendix 2-FB
A59: Calculation of Renewable Generation Connection Direct Benefits/Provincial Amount: Renewable Enabling Improvement Investments
D61: 2015 | E61: 2016 | F61: 2017 | G61: 2018 | H61: 2019 | I61: 2020 | J61: =+I61+1 -> 2021 | K61: 2022 | L61: 2023 | M61: 2024 | N61: 2025 | O61: 2026 | P61: =+O61+1 -> 2027 | Q61: =+P61+1 -> 2028 | R61: =+Q61+1 -> 2029 | S61: =+R61+1 -> 2030 | T61: =+S61+1 -> 2031
A62: Net Fixed Assets | D62: =(180000/25)/2 -> 3600
B63: Enter applicable amortization in years: | C63: 15
A64: Opening Gross Fixed Assets | E64: =D66 -> 180000 | F64: =E66 -> 360000 | G64: =F66 -> 540000 | H64: =G66 -> 720000 | I64: =H66 -> 900000 | J64: =I66 -> 900000 | K64: 900000 | L64: 900000 | M64: 900000 | N64: 900000 | O64: 900000 | P64: =O66 -> 900000 | Q64: =P66 -> 900000 | R64: =Q66 -> 900000 | S64: =R66 -> 900000 | T64: =S66 -> 900000
A65: Gross Capital Additions | D65: ='App.2-FA Proposed REG Invest.'!D45 -> 180000 | E65: ='App.2-FA Proposed REG Invest.'!E45 -> 180000 | F65: ='App.2-FA Proposed REG Invest.'!F45 -> 180000 | G65: ='App.2-FA Proposed REG Invest.'!G45 -> 180000 | H65: ='App.2-FA Proposed REG Invest.'!H45 -> 180000 | I65: ='App.2-FA Proposed REG Invest.'!I45 -> 0 | J65: ='App.2-FA Proposed REG Invest.'!J45 -> 0 | K65: ='App.2-FA Proposed REG Invest.'!K45 -> 0 | L65: ='App.2-FA Proposed REG Invest.'!L45 -> 0 | M65: ='App.2-FA Proposed REG Invest.'!M45 -> 0 | N65: ='App.2-FA Proposed REG Invest.'!N45 -> 0 | O65: ='App.2-FA Proposed REG Invest.'!O45 -> 0 | P65: ='App.2-FA Proposed REG Invest.'!P45 -> 0 | Q65: ='App.2-FA Proposed REG Invest.'!Q45 -> 0 | R65: ='App.2-FA Proposed REG Invest.'!R45 -> 0 | S65: ='App.2-FA Proposed REG Invest.'!S45 -> 0 | T65: ='App.2-FA Proposed REG Invest.'!T45 -> 0
A66: Closing Gross Fixed Assets | D66: =SUM(D64:D65) -> 180000 | E66: =SUM(E64:E65) -> 360000 | F66: 540000 | G66: 720000 | H66: 900000 | I66: =SUM(I64:I65) -> 900000 | J66: 900000 | K66: =SUM(K64:K65) -> 900000 | L66: 900000 | M66: 900000 | N66: 900000 | O66: 900000 | P66: =SUM(P64:P65) -> 900000 | Q66: 900000 | R66: 900000 | S66: 900000 | T66: 900000
A68: Opening Accumulated Amortization | E68: =D71 -> 6000 | F68: =E71 -> 24000 | G68: =F71 -> 54000 | H68: =G71 -> 96000 | I68: =H71 -> 150000 | J68: =I71 -> 210000 | K68: 270000 | L68: 330000 | M68: 390000 | N68: 450000 | O68: 510000 | P68: =O71 -> 570000 | Q68: =P71 -> 630000 | R68: =Q71 -> 690000 | S68: =R71 -> 750000 | T68: =S71 -> 810000
A69: Current Year Amortization (before additions) | E69: =IF(ISERROR(E64/$C$63), 0, E64/$C$63) -> 12000 | F69: 24000 | G69: 36000 | H69: =IF(ISERROR(H64/$C$63), 0, H64/$C$63) -> 48000 | I69: =IF(ISERROR(I64/$C$63), 0, I64/$C$63) -> 60000 | J69: =IF(ISERROR(J64/$C$63), 0, J64/$C$63) -> 60000 | K69: 60000 | L69: =IF(ISERROR(L64/$C$63), 0, L64/$C$63) -> 60000 | M69: 60000 | N69: 60000 | O69: 60000 | P69: 60000 | Q69: 60000 | R69: 60000 | S69: 60000 | T69: 60000
A70: Additions (half year) | D70: =D65/C63/2 -> 6000 | E70: =E65/C63/2 -> 6000 | F70: =F65/C63/2 -> 6000 | G70: =G65/C63/2 -> 6000 | H70: =H65/C63/2 -> 6000 | I70: =I65/$C$63/2 -> 0 | J70: =J65/$C$63/2 -> 0 | K70: 0 | L70: 0 | M70: 0 | N70: 0 | O70: 0 | P70: 0 | Q70: 0 | R70: 0 | S70: 0 | T70: 0
A71: Closing Accumulated Amortization | D71: =SUM(D68+D70) -> 6000 | E71: =SUM(E68:E70) -> 24000 | F71: =SUM(F68:F70) -> 54000 | G71: =SUM(G68:G70) -> 96000 | H71: =SUM(H68:H70) -> 150000 | I71: =SUM(I68:I70) -> 210000 | J71: =SUM(J68:J70) -> 270000 | K71: 330000 | L71: =SUM(L68:L70) -> 390000 | M71: 450000 | N71: 510000 | O71: 570000 | P71: =SUM(P68:P70) -> 630000 | Q71: 690000 | R71: 750000 | S71: 810000 | T71: 870000
A73: Opening Net Fixed Assets | D73: =D64-D68 -> 0 | E73: =D74 -> 174000 | F73: =E74 -> 336000 | G73: =F74 -> 486000 | H73: =G74 -> 624000 | I73: =H74 -> 750000 | J73: =I74 -> 690000 | K73: 630000 | L73: 570000 | M73: 510000 | N73: 450000 | O73: 390000 | P73: =O74 -> 330000 | Q73: =P74 -> 270000 | R73: =Q74 -> 210000 | S73: =R74 -> 150000 | T73: =S74 -> 90000
A74: Closing Net Fixed Assets | D74: =D66-D71 -> 174000 | E74: 336000 | F74: 486000 | G74: 624000 | H74: =H66-H71 -> 750000 | I74: 690000 | J74: =J66-J71 -> 630000 | K74: 570000 | L74: =L66-L71 -> 510000 | M74: 450000 | N74: 390000 | O74: 330000 | P74: =P66-P71 -> 270000 | Q74: 210000 | R74: 150000 | S74: 90000 | T74: 30000
A75: Average Net Fixed Assets | D75: =SUM(D73:D74)/2 -> 87000 | E75: 255000 | F75: 411000 | G75: 555000 | H75: 687000 | I75: 720000 | J75: =SUM(J73:J74)/2 -> 660000 | K75: 600000 | L75: =SUM(L73:L74)/2 -> 540000 | M75: 480000 | N75: 420000 | O75: 360000 | P75: =SUM(P73:P74)/2 -> 300000 | Q75: 240000 | R75: 180000 | S75: 120000 | T75: 60000
A77: UCC for PILs Calculation
D78: =D61 -> 2015 | E78: 2016 | F78: 2017 | G78: =G61 -> 2018 | H78: =H61 -> 2019 | I78: 2020 | J78: 2021 | K78: =K61 -> 2022 | L78: 2023 | M78: 2024 | N78: 2025 | O78: 2026 | P78: =P61 -> 2027 | Q78: 2028 | R78: 2029 | S78: 2030 | T78: 2031
A80: Opening UCC | E80: =D88 -> 172800 | F80: =E88 -> 331776 | G80: =F88 -> 478033.92 | H80: =G88 -> 612591.2064 | I80: =H88 -> 736383.9099 | J80: =I88 -> 677473.1971 | K80: 623275.3413 | L80: 573413.314 | M80: 527540.2489 | N80: 485337.029 | O80: 446510.0667 | P80: =O88 -> 410789.2613 | Q80: =P88 -> 377926.1204 | R80: =Q88 -> 347692.0308 | S80: =R88 -> 319876.6683 | T80: =S88 -> 294286.5349
A81: Capital Additions (from Appendix 2-FA) | D81: =D65 -> 180000 | E81: =E65 -> 180000 | F81: =F65 -> 180000 | G81: 180000 | H81: 180000 | I81: =I65 -> 0 | J81: 0 | K81: =K65 -> 0 | L81: 0 | M81: 0 | N81: 0 | O81: 0 | P81: =P65 -> 0 | Q81: 0 | R81: 0 | S81: 0 | T81: 0
A82: UCC Before Half Year Rule | D82: =SUM(D80:D81) -> 180000 | E82: 352800 | F82: 511776 | G82: 658033.92 | H82: 792591.2064 | I82: 736383.9099 | J82: =SUM(J80:J81) -> 677473.1971 | K82: 623275.3413 | L82: =SUM(L80:L81) -> 573413.314 | M82: 527540.2489 | N82: 485337.029 | O82: 446510.0667 | P82: =SUM(P80:P81) -> 410789.2613 | Q82: 377926.1204 | R82: 347692.0308 | S82: 319876.6683 | T82: 294286.5349
A83: Half Year Rule (1/2 Additions - Disposals) | D83: =D81/2 -> 90000 | E83: 90000 | F83: 90000 | G83: 90000 | H83: 90000 | I83: 0 | J83: =J81/2 -> 0 | K83: 0 | L83: =L81/2 -> 0 | M83: 0 | N83: 0 | O83: 0 | P83: =P81/2 -> 0 | Q83: 0 | R83: 0 | S83: 0 | T83: 0
A84: Reduced UCC | D84: =D82-D83 -> 90000 | E84: 262800 | F84: 421776 | G84: 568033.92 | H84: 702591.2064 | I84: 736383.9099 | J84: =J82-J83 -> 677473.1971 | K84: 623275.3413 | L84: =L82-L83 -> 573413.314 | M84: 527540.2489 | N84: 485337.029 | O84: 446510.0667 | P84: =P82-P83 -> 410789.2613 | Q84: 377926.1204 | R84: 347692.0308 | S84: 319876.6683 | T84: 294286.5349
A85: CCA Rate Class (to be entered) | C85: 47 | D85: =C85 -> 47 | E85: =C85 -> 47 | F85: =C85 -> 47 | G85: =C85 -> 47 | H85: =C85 -> 47 | I85: =D85 -> 47 | J85: =E85 -> 47 | K85: 47 | L85: 47 | M85: 47 | N85: 47 | O85: 47 | P85: =K85 -> 47 | Q85: =L85 -> 47 | R85: =M85 -> 47 | S85: =N85 -> 47 | T85: =O85 -> 47
A86: CCA Rate (to be entered) | C86: 0.08 | D86: =C86 -> 0.08 | E86: =C86 -> 0.08 | F86: =C86 -> 0.08 | G86: =C86 -> 0.08 | H86: =C86 -> 0.08 | I86: =D86 -> 0.08 | J86: 0.08 | K86: 0.08 | L86: 0.08 | M86: 0.08 | N86: 0.08 | O86: 0.08 | P86: 0.08 | Q86: 0.08 | R86: 0.08 | S86: 0.08 | T86: 0.08
A87: CCA | D87: =D84*D86 -> 7200 | E87: =E84*E86 -> 21024 | F87: 33742.08 | G87: 45442.7136 | H87: =H84*H86 -> 56207.29651 | I87: =I84*I86 -> 58910.71279 | J87: =J84*J86 -> 54197.85577 | K87: 49862.02731 | L87: =L84*L86 -> 45873.06512 | M87: 42203.21991 | N87: 38826.96232 | O87: 35720.80533 | P87: =P84*P86 -> 32863.14091 | Q87: 30234.08963 | R87: 27815.36246 | S87: 25590.13347 | T87: 23542.92279
A88: Closing UCC | D88: =D82-D87 -> 172800 | E88: 331776 | F88: 478033.92 | G88: 612591.2064 | H88: 736383.9099 | I88: 677473.1971 | J88: =J82-J87 -> 623275.3413 | K88: 573413.314 | L88: =L82-L87 -> 527540.2489 | M88: 485337.029 | N88: 446510.0667 | O88: 410789.2613 | P88: =P82-P87 -> 377926.1204 | Q88: 347692.0308 | R88: 319876.6683 | S88: 294286.5349 | T88: 270743.6121

Sheet App.2-FC Calc of REG Expansion
A1: Appendix 2-FC
A2: Calculation of Renewable Generation Connection Direct Benefits/Provincial Amount: Renewable Expansion Investments | AL2: Proposed | AO2: 2027 | AR2: 2028 | AU2: 2029 | AX2: 2030 | BA2: 2031
AL3: ST Interest | AO3: 0.0391 | AR3: 0.0391 | AU3: 0.0391 | AX3: 0.0391 | BA3: 0.0391
A4: This table will calculate the distributor/provincial shares of the investments entered in Part B of Appendix 2-FA. | AL4: LT Interest | AO4: 0.0419 | AR4: 0.0435 | AU4: 0.0436 | AX4: 0.0437 | BA4: 0.0451
A5: Enter values in green shaded cells: WCA percentage, debt percentages, interest rates, kWh, tax rates, amortization period, CCA Class and percentage. | AL5: ROE | AO5: 0.09 | AR5: 0.09 | AU5: 0.09 | AX5: 0.09 | BA5: 0.09
A6: Rate Riders are not calculated for Test Year as these assets and costs are already in the distributors rate base. | AL6: WAC | AO6: 0.061029 | AR6: 0.061896 | AU6: 0.061993 | AX6: 0.062054 | BA6: 0.062847
D9: 2015 Test Year | G9: 2016 | J9: 2017 | K9: 2016 | M9: 2018 | P9: 2019 | S9: 2020 | V9: =+S9+1 -> 2021 | Y9: =+V9+1 -> 2022 | AB9: =+Y9+1 -> 2023 | AE9: =+AB9+1 -> 2024 | AH9: =+AE9+1 -> 2025 | AK9: =+AH9+1 -> 2026 | AN9: =+AK9+1 -> 2027 | AQ9: =+AN9+1 -> 2028 | AT9: =+AQ9+1 -> 2029 | AW9: =+AT9+1 -> 2030 | AZ9: =+AW9+1 -> 2031
B10: 2015 | E10: Direct Benefit | F10: Provincial | H10: Direct Benefit | I10: Provincial | K10: Direct Benefit | L10: Provincial | N10: Direct Benefit | O10: Provincial | Q10: Direct Benefit | R10: Provincial | T10: Direct Benefit | U10: Provincial | W10: Direct Benefit | X10: Provincial | Z10: Direct Benefit | AA10: Provincial | AC10: Direct Benefit | AD10: Provincial | AF10: Direct Benefit | AG10: Provincial | AI10: Direct Benefit | AJ10: Provincial | AL10: Direct Benefit | AM10: Provincial | AO10: Direct Benefit | AP10: Provincial | AR10: Direct Benefit | AS10: Provincial | AU10: Direct Benefit | AV10: Provincial | AX10: Direct Benefit | AY10: Provincial | BA10: Direct Benefit | BB10: Provincial
D11: Total | E11: 0.17 | F11: 0.83 | G11: Total | H11: 0.17 | I11: 0.83 | J11: Total | K11: 0.17 | L11: 0.83 | M11: Total | N11: 0.17 | O11: 0.83 | P11: Total | Q11: 0.17 | R11: 0.83 | S11: Total | T11: 0.17 | U11: 0.83 | V11: Total | W11: 0.17 | X11: 0.83 | Y11: Total | Z11: 0.17 | AA11: 0.83 | AB11: Total | AC11: 0.17 | AD11: 0.83 | AE11: Total | AF11: 0.17 | AG11: 0.83 | AH11: Total | AI11: 0.17 | AJ11: 0.83 | AK11: Total | AL11: 0.17 | AM11: 0.83 | AN11: Total | AO11: 0.17 | AP11: 0.83 | AQ11: Total | AR11: 0.17 | AS11: 0.83 | AT11: Total | AU11: 0.17 | AV11: 0.83 | AW11: Total | AX11: 0.17 | AY11: 0.83 | AZ11: Total | BA11: 0.17 | BB11: 0.83
A12: Net Fixed Assets (average) | D12: =D73 -> 48387.5 | E12: =D12*E11 -> 8225.875 | F12: =D12*F11 -> 40161.625 | G12: =E73 -> 130112.5 | H12: =G12*H11 -> 22119.125 | I12: =G12*I11 -> 107993.375 | J12: =F73 -> 196900 | K12: =J12*K11 -> 33473 | L12: =J12*L11 -> 163427 | M12: =G73 -> 263887.5 | N12: =M12*N11 -> 44860.875 | O12: =M12*O11 -> 219026.625 | P12: =H73 -> 331025 | Q12: =P12*Q11 -> 56274.25 | R12: =P12*R11 -> 274750.75 | S12: =I73 -> 359750 | T12: =S12*T11 -> 61157.5 | U12: =S12*U11 -> 298592.5 | V12: =J73 -> 350000 | W12: =V12*W11 -> 59500 | X12: =V12*X11 -> 290500 | Y12: =K73 -> 340250 | Z12: =Y12*Z11 -> 57842.5 | AA12: =Y12*AA11 -> 282407.5 | AB12: =L73 -> 330500 | AC12: =AB12*AC11 -> 56185 | AD12: =AB12*AD11 -> 274315 | AE12: =M73 -> 320750 | AF12: =AE12*AF11 -> 54527.5 | AG12: =AE12*AG11 -> 266222.5 | AH12: =N73 -> 311541.6667 | AI12: =AH12*AI11 -> 52962.08333 | AJ12: =AH12*AJ11 -> 258579.5833 | AK12: =O73 -> 302875 | AL12: =AK12*AL11 -> 51488.75 | AM12: =AK12*AM11 -> 251386.25 | AN12: =P73 -> 294208.3333 | AO12: =AN12*AO11 -> 50015.41667 | AP12: =AN12*AP11 -> 244192.9167 | AQ12: =Q73 -> 285541.6667 | AR12: =AQ12*AR11 -> 48542.08333 | AS12: =AQ12*AS11 -> 236999.5833 | AT12: =R73 -> 276875 | AU12: =AT12*AU11 -> 47068.75 | AV12: =AT12*AV11 -> 229806.25 | AW12: =S73 -> 268208.3333 | AX12: =AW12*AX11 -> 45595.41667 | AY12: =AW12*AY11 -> 222612.9167 | AZ12: =T73 -> 259541.6667 | BA12: =AZ12*BA11 -> 44122.08333 | BB12: =AZ12*BB11 -> 215419.5833
A13: Incremental OM&A (on-going, N/A for Provincial Recovery) | D13: ='App.2-FA Proposed REG Invest.'!D87 -> 0 | E13: =D13 -> 0 | G13: ='App.2-FA Proposed REG Invest.'!E87 -> 0 | H13: =G13 -> 0 | J13: ='App.2-FA Proposed REG Invest.'!F87 -> 0 | K13: =J13 -> 0 | M13: ='App.2-FA Proposed REG Invest.'!G87 -> 0 | N13: =M13 -> 0 | P13: ='App.2-FA Proposed REG Invest.'!H87 -> 0 | Q13: =P13 -> 0 | S13: ='App.2-FA Proposed REG Invest.'!I87 -> 0 | T13: =S13 -> 0 | V13: ='App.2-FA Proposed REG Invest.'!J87 -> 0 | W13: =V13 -> 0 | Y13: ='App.2-FA Proposed REG Invest.'!K87 -> 0 | Z13: =Y13 -> 0 | AB13: ='App.2-FA Proposed REG Invest.'!L87 -> 0 | AC13: =AB13 -> 0 | AE13: ='App.2-FA Proposed REG Invest.'!M87 -> 0 | AF13: =AE13 -> 0 | AH13: ='App.2-FA Proposed REG Invest.'!N87 -> 0 | AI13: =AH13 -> 0 | AK13: ='App.2-FA Proposed REG Invest.'!O87 -> 0 | AL13: =AK13 -> 0 | AN13: ='App.2-FA Proposed REG Invest.'!P87 -> 0 | AO13: =AN13 -> 0 | AQ13: ='App.2-FA Proposed REG Invest.'!Q87 -> 0 | AR13: =AQ13 -> 0 | AT13: ='App.2-FA Proposed REG Invest.'!R87 -> 0 | AU13: =AT13 -> 0 | AW13: ='App.2-FA Proposed REG Invest.'!S87 -> 0 | AX13: =AW13 -> 0 | AZ13: ='App.2-FA Proposed REG Invest.'!T87 -> 0 | BA13: =AZ13 -> 0
A14: Incremental OM&A (start-up, applicable for Provincial Recovery) | D14: ='App.2-FA Proposed REG Invest.'!D86 -> 9800 | E14: =D14*E11 -> 1666 | F14: =D14*F11 -> 8134 | G14: ='App.2-FA Proposed REG Invest.'!E86 -> 7000 | H14: =G14*H11 -> 1190 | I14: =G14*I11 -> 5810 | J14: ='App.2-FA Proposed REG Invest.'!F86 -> 7200 | K14: =J14*K11 -> 1224 | L14: =J14*L11 -> 5976 | M14: ='App.2-FA Proposed REG Invest.'!G86 -> 7400 | N14: =M14*N11 -> 1258 | O14: =M14*O11 -> 6142 | P14: ='App.2-FA Proposed REG Invest.'!H86 -> 7600 | Q14: =P14*Q11 -> 1292 | R14: =P14*R11 -> 6308 | S14: ='App.2-FA Proposed REG Invest.'!I86 -> 0 | T14: =S14*T11 -> 0 | U14: =S14*U11 -> 0 | V14: ='App.2-FA Proposed REG Invest.'!J86 -> 0 | W14: =V14*W11 -> 0 | X14: =V14*X11 -> 0 | Y14: ='App.2-FA Proposed REG Invest.'!K86 -> 0 | Z14: =Y14*Z11 -> 0 | AA14: =Y14*AA11 -> 0 | AB14: ='App.2-FA Proposed REG Invest.'!L86 -> 0 | AC14: =AB14*AC11 -> 0 | AD14: =AB14*AD11 -> 0 | AE14: ='App.2-FA Proposed REG Invest.'!M86 -> 0 | AF14: =AE14*AF11 -> 0 | AG14: =AE14*AG11 -> 0 | AH14: ='App.2-FA Proposed REG Invest.'!N86 -> 0 | AI14: =AH14*AI11 -> 0 | AJ14: =AH14*AJ11 -> 0 | AK14: ='App.2-FA Proposed REG Invest.'!O86 -> 0 | AL14: =AK14*AL11 -> 0 | AM14: =AK14*AM11 -> 0 | AN14: ='App.2-FA Proposed REG Invest.'!P86 -> 0 | AO14: =AN14*AO11 -> 0 | AP14: =AN14*AP11 -> 0 | AQ14: ='App.2-FA Proposed REG Invest.'!Q86 -> 0 | AR14: =AQ14*AR11 -> 0 | AS14: =AQ14*AS11 -> 0 | AT14: ='App.2-FA Proposed REG Invest.'!R86 -> 0 | AU14: =AT14*AU11 -> 0 | AV14: =AT14*AV11 -> 0 | AW14: ='App.2-FA Proposed REG Invest.'!S86 -> 0 | AX14: =AW14*AX11 -> 0 | AY14: =AW14*AY11 -> 0 | AZ14: ='App.2-FA Proposed REG Invest.'!T86 -> 0 | BA14: =AZ14*BA11 -> 0 | BB14: =AZ14*BB11 -> 0
A15: WCA | B15: 0.13 | E15: =(E13+E14)*$B$15 -> 216.58 | F15: =F14*$B$15 -> 1057.42 | H15: =(H13+H14)*$B$15 -> 154.7 | I15: =I14*$B$15 -> 755.3 | K15: =(K13+K14)*$B$15 -> 159.12 | L15: =L14*$B$15 -> 776.88 | N15: =(N13+N14)*$B$15 -> 163.54 | O15: =O14*$B$15 -> 798.46 | Q15: =(Q13+Q14)*$B$15 -> 167.96 | R15: =R14*$B$15 -> 820.04 | T15: =(T13+T14)*$B$15 -> 0 | U15: =U14*$B$15 -> 0 | W15: =(W13+W14)*$B$15 -> 0 | X15: =X14*$B$15 -> 0 | Z15: =(Z13+Z14)*$B$15 -> 0 | AA15: =AA14*$B$15 -> 0 | AC15: =(AC13+AC14)*$B$15 -> 0 | AD15: =AD14*$B$15 -> 0 | AF15: =(AF13+AF14)*$B$15 -> 0 | AG15: =AG14*$B$15 -> 0 | AI15: =(AI13+AI14)*$B$15 -> 0 | AJ15: =AJ14*$B$15 -> 0 | AL15: =(AL13+AL14)*$B$15 -> 0 | AM15: =AM14*$B$15 -> 0 | AO15: =(AO13+AO14)*$B$15 -> 0 | AP15: =AP14*$B$15 -> 0 | AR15: =(AR13+AR14)*$B$15 -> 0 | AS15: =AS14*$B$15 -> 0 | AU15: =(AU13+AU14)*$B$15 -> 0 | AV15: =AV14*$B$15 -> 0 | AX15: =(AX13+AX14)*$B$15 -> 0 | AY15: =AY14*$B$15 -> 0 | BA15: =(BA13+BA14)*$B$15 -> 0 | BB15: =BB14*$B$15 -> 0
A16: Rate Base | E16: =SUM(E12+E15) -> 8442.455 | F16: =SUM(F12+F15) -> 41219.045 | H16: =SUM(H12+H15) -> 22273.825 | I16: =SUM(I12+I15) -> 108748.675 | K16: =SUM(K12+K15) -> 33632.12 | L16: =SUM(L12+L15) -> 164203.88 | N16: =SUM(N12+N15) -> 45024.415 | O16: =SUM(O12+O15) -> 219825.085 | Q16: =SUM(Q12+Q15) -> 56442.21 | R16: =SUM(R12+R15) -> 275570.79 | T16: =SUM(T12+T15) -> 61157.5 | U16: =SUM(U12+U15) -> 298592.5 | W16: =SUM(W12+W15) -> 59500 | X16: =SUM(X12+X15) -> 290500 | Z16: =SUM(Z12+Z15) -> 57842.5 | AA16: =SUM(AA12+AA15) -> 282407.5 | AC16: =SUM(AC12+AC15) -> 56185 | AD16: =SUM(AD12+AD15) -> 274315 | AF16: =SUM(AF12+AF15) -> 54527.5 | AG16: =SUM(AG12+AG15) -> 266222.5 | AI16: =SUM(AI12+AI15) -> 52962.08333 | AJ16: =SUM(AJ12+AJ15) -> 258579.5833 | AL16: =SUM(AL12+AL15) -> 51488.75 | AM16: =SUM(AM12+AM15) -> 251386.25 | AO16: =SUM(AO12+AO15) -> 50015.41667 | AP16: =SUM(AP12+AP15) -> 244192.9167 | AR16: =SUM(AR12+AR15) -> 48542.08333 | AS16: =SUM(AS12+AS15) -> 236999.5833 | AU16: =SUM(AU12+AU15) -> 47068.75 | AV16: =SUM(AV12+AV15) -> 229806.25 | AX16: =SUM(AX12+AX15) -> 45595.41667 | AY16: =SUM(AY12+AY15) -> 222612.9167 | BA16: =SUM(BA12+BA15) -> 44122.08333 | BB16: =SUM(BB12+BB15) -> 215419.5833
A19: Deemed ST Debt | B19: 0.04 | E19: =E16*$B$19 -> 337.6982 | F19: =F16*$B$19 -> 1648.7618 | H19: =H16*$B$19 -> 890.953 | I19: =I16*$B$19 -> 4349.947 | K19: =K16*$B$19 -> 1345.2848 | L19: =L16*$B$19 -> 6568.1552 | N19: =N16*$B$19 -> 1800.9766 | O19: =O16*$B$19 -> 8793.0034 | Q19: =Q16*$B$19 -> 2257.6884 | R19: =R16*$B$19 -> 11022.8316 | T19: =T16*$B$19 -> 2446.3 | U19: =U16*$B$19 -> 11943.7 | W19: =W16*$B$19 -> 2380 | X19: =X16*$B$19 -> 11620 | Z19: =Z16*$B$19 -> 2313.7 | AA19: =AA16*$B$19 -> 11296.3 | AC19: =AC16*$B$19 -> 2247.4 | AD19: =AD16*$B$19 -> 10972.6 | AF19: =AF16*$B$19 -> 2181.1 | AG19: =AG16*$B$19 -> 10648.9 | AI19: =AI16*$B$19 -> 2118.483333 | AJ19: =AJ16*$B$19 -> 10343.18333 | AL19: =AL16*$B$19 -> 2059.55 | AM19: =AM16*$B$19 -> 10055.45 | AO19: =AO16*$B$19 -> 2000.616667 | AP19: =AP16*$B$19 -> 9767.716667 | AR19: =AR16*$B$19 -> 1941.683333 | AS19: =AS16*$B$19 -> 9479.983333 | AU19: =AU16*$B$19 -> 1882.75 | AV19: =AV16*$B$19 -> 9192.25 | AX19: =AX16*$B$19 -> 1823.816667 | AY19: =AY16*$B$19 -> 8904.516667 | BA19: =BA16*$B$19 -> 1764.883333 | BB19: =BB16*$B$19 -> 8616.783333
A20: Deemed LT Debt | B20: 0.56 | E20: =E16*$B$20 -> 4727.7748 | F20: =F16*$B$20 -> 23082.6652 | H20: =H16*$B$20 -> 12473.342 | I20: =I16*$B$20 -> 60899.258 | K20: =K16*$B$20 -> 18833.9872 | L20: =L16*$B$20 -> 91954.1728 | N20: =N16*$B$20 -> 25213.6724 | O20: =O16*$B$20 -> 123102.0476 | Q20: =Q16*$B$20 -> 31607.6376 | R20: =R16*$B$20 -> 154319.6424 | T20: =T16*$B$20 -> 34248.2 | U20: =U16*$B$20 -> 167211.8 | W20: =W16*$B$20 -> 33320 | X20: =X16*$B$20 -> 162680 | Z20: =Z16*$B$20 -> 32391.8 | AA20: =AA16*$B$20 -> 158148.2 | AC20: =AC16*$B$20 -> 31463.6 | AD20: =AD16*$B$20 -> 153616.4 | AF20: =AF16*$B$20 -> 30535.4 | AG20: =AG16*$B$20 -> 149084.6 | AI20: =AI16*$B$20 -> 29658.76667 | AJ20: =AJ16*$B$20 -> 144804.5667 | AL20: =AL16*$B$20 -> 28833.7 | AM20: =AM16*$B$20 -> 140776.3 | AO20: =AO16*$B$20 -> 28008.63333 | AP20: =AP16*$B$20 -> 136748.0333 | AR20: =AR16*$B$20 -> 27183.56667 | AS20: =AS16*$B$20 -> 132719.7667 | AU20: =AU16*$B$20 -> 26358.5 | AV20: =AV16*$B$20 -> 128691.5 | AX20: =AX16*$B$20 -> 25533.43333 | AY20: =AY16*$B$20 -> 124663.2333 | BA20: =BA16*$B$20 -> 24708.36667 | BB20: =BB16*$B$20 -> 120634.9667
A21: Deemed Equity | B21: 0.4 | E21: =E16*$B$21 -> 3376.982 | F21: =F16*$B$21 -> 16487.618 | H21: =H16*$B$21 -> 8909.53 | I21: =I16*$B$21 -> 43499.47 | K21: =K16*$B$21 -> 13452.848 | L21: =L16*$B$21 -> 65681.552 | N21: =N16*$B$21 -> 18009.766 | O21: =O16*$B$21 -> 87930.034 | Q21: =Q16*$B$21 -> 22576.884 | R21: =R16*$B$21 -> 110228.316 | T21: =T16*$B$21 -> 24463 | U21: =U16*$B$21 -> 119437 | W21: =W16*$B$21 -> 23800 | X21: =X16*$B$21 -> 116200 | Z21: =Z16*$B$21 -> 23137 | AA21: =AA16*$B$21 -> 112963 | AC21: =AC16*$B$21 -> 22474 | AD21: =AD16*$B$21 -> 109726 | AF21: =AF16*$B$21 -> 21811 | AG21: =AG16*$B$21 -> 106489 | AI21: =AI16*$B$21 -> 21184.83333 | AJ21: =AJ16*$B$21 -> 103431.8333 | AL21: =AL16*$B$21 -> 20595.5 | AM21: =AM16*$B$21 -> 100554.5 | AO21: =AO16*$B$21 -> 20006.16667 | AP21: =AP16*$B$21 -> 97677.16667 | AR21: =AR16*$B$21 -> 19416.83333 | AS21: =AS16*$B$21 -> 94799.83333 | AU21: =AU16*$B$21 -> 18827.5 | AV21: =AV16*$B$21 -> 91922.5 | AX21: =AX16*$B$21 -> 18238.16667 | AY21: =AY16*$B$21 -> 89045.16667 | BA21: =BA16*$B$21 -> 17648.83333 | BB21: =BB16*$B$21 -> 86167.83333
A23: ST Interest | B23: 0.0216 | E23: =E19*$B$23 -> 7.29428112 | F23: =F19*$B$23 -> 35.61325488 | H23: =H19*$B$23 -> 19.2445848 | I23: =I19*$B$23 -> 93.9588552 | K23: =K19*$B$23 -> 29.05815168 | L23: =L19*$B$23 -> 141.8721523 | N23: =N19*$B$23 -> 38.90109456 | O23: =O19*$B$23 -> 189.9288734 | Q23: =Q19*$B$23 -> 48.76606944 | R23: =R19*$B$23 -> 238.0931626 | T23: =T19*$B$23 -> 52.84008 | U23: =U19*$B$23 -> 257.98392 | W23: =W19*$B$23 -> 51.408 | X23: =X19*$B$23 -> 250.992 | Z23: =Z19*$B$23 -> 49.97592 | AA23: =AA19*$B$23 -> 244.00008 | AC23: =AC19*$B$23 -> 48.54384 | AD23: =AD19*$B$23 -> 237.00816 | AF23: =AF19*$B$23 -> 47.11176 | AG23: =AG19*$B$23 -> 230.01624 | AI23: =AI19*$B$23 -> 45.75924 | AJ23: =AJ19*$B$23 -> 223.41276 | AL23: =AL19*$B$23 -> 44.48628 | AM23: =AM19*$B$23 -> 217.19772 | AO23: =AO19*AO3 -> 78.22411167 | AP23: =AP19*AO3 -> 381.9177217 | AR23: =AR19*AR3 -> 75.91981833 | AS23: =AS19*AR3 -> 370.6673483 | AU23: =AU19*AU3 -> 73.615525 | AV23: =AV19*AU3 -> 359.416975 | AX23: =AX19*AX3 -> 71.31123167 | AY23: =AY19*AX3 -> 348.1666017 | BA23: =BA19*BA3 -> 69.00693833 | BB23: =BB19*BA3 -> 336.9162283
A24: LT Interest | B24: 0.06072871046 | E24: =E20*$B$24 -> 287.111667 | F24: =F20*$B$24 -> 1401.780492 | H24: =H20*$B$24 -> 757.4899748 | I24: =I20*$B$24 -> 3698.333406 | K24: =K20*$B$24 -> 1143.763756 | L24: =L20*$B$24 -> 5584.258336 | N24: =N20*$B$24 -> 1531.193811 | O24: =O20*$B$24 -> 7475.828606 | Q24: =Q20*$B$24 -> 1919.491072 | R24: =R20*$B$24 -> 9371.632882 | T24: =T20*$B$24 -> 2079.849022 | U24: =U20*$B$24 -> 10154.55699 | W24: =W20*$B$24 -> 2023.480633 | X24: =X20*$B$24 -> 9879.346618 | Z24: =Z20*$B$24 -> 1967.112244 | AA24: =AA20*$B$24 -> 9604.136248 | AC24: =AC20*$B$24 -> 1910.743855 | AD24: =AD20*$B$24 -> 9328.925878 | AF24: =AF20*$B$24 -> 1854.375465 | AG24: =AG20*$B$24 -> 9053.715508 | AI24: =AI20*$B$24 -> 1801.138654 | AJ24: =AJ20*$B$24 -> 8793.794603 | AL24: =AL20*$B$24 -> 1751.033419 | AM24: =AM20*$B$24 -> 8549.163163 | AO24: =AO20*AO4 -> 1173.561737 | AP24: =AP20*AO4 -> 5729.742597 | AR24: =AR20*AR4 -> 1182.48515 | AS24: =AS20*AR4 -> 5773.30985 | AU24: =AU20*AU4 -> 1149.2306 | AV24: =AV20*AU4 -> 5610.9494 | AX24: =AX20*AX4 -> 1115.811037 | AY24: =AY20*AX4 -> 5447.783297 | BA24: =BA20*BA4 -> 1114.347337 | BB24: =BB20*BA4 -> 5440.636997
A25: ROE | B25: 0.093 | E25: =E21*$B$25 -> 314.059326 | F25: =F21*$B$25 -> 1533.348474 | H25: =H21*$B$25 -> 828.58629 | I25: =I21*$B$25 -> 4045.45071 | K25: =K21*$B$25 -> 1251.114864 | L25: =L21*$B$25 -> 6108.384336 | N25: =N21*$B$25 -> 1674.908238 | O25: =O21*$B$25 -> 8177.493162 | Q25: =Q21*$B$25 -> 2099.650212 | R25: =R21*$B$25 -> 10251.23339 | T25: =T21*$B$25 -> 2275.059 | U25: =U21*$B$25 -> 11107.641 | W25: =W21*$B$25 -> 2213.4 | X25: =X21*$B$25 -> 10806.6 | Z25: =Z21*$B$25 -> 2151.741 | AA25: =AA21*$B$25 -> 10505.559 | AC25: =AC21*$B$25 -> 2090.082 | AD25: =AD21*$B$25 -> 10204.518 | AF25: =AF21*$B$25 -> 2028.423 | AG25: =AG21*$B$25 -> 9903.477 | AI25: =AI21*$B$25 -> 1970.1895 | AJ25: =AJ21*$B$25 -> 9619.1605 | AL25: =AL21*$B$25 -> 1915.3815 | AM25: =AM21*$B$25 -> 9351.5685 | AO25: =AO21*AO5 -> 1800.555 | AP25: =AP21*AO5 -> 8790.945 | AR25: =AR21*AR5 -> 1747.515 | AS25: =AS21*AR5 -> 8531.985 | AU25: =AU21*AU5 -> 1694.475 | AV25: =AV21*AU5 -> 8273.025 | AX25: =AX21*AX5 -> 1641.435 | AY25: =AY21*AX5 -> 8014.065 | BA25: =BA21*BA5 -> 1588.395 | BB25: =BB21*BA5 -> 7755.105
A26: Cost of Capital Total | E26: =SUM(E23:E25) -> 608.4652741 | F26: =SUM(F23:F25) -> 2970.742221 | H26: =SUM(H23:H25) -> 1605.32085 | I26: =SUM(I23:I25) -> 7837.742972 | K26: =SUM(K23:K25) -> 2423.936771 | L26: =SUM(L23:L25) -> 11834.51482 | N26: =SUM(N23:N25) -> 3245.003143 | O26: =SUM(O23:O25) -> 15843.25064 | Q26: =SUM(Q23:Q25) -> 4067.907354 | R26: =SUM(R23:R25) -> 19860.95943 | T26: =SUM(T23:T25) -> 4407.748102 | U26: =SUM(U23:U25) -> 21520.18191 | W26: =SUM(W23:W25) -> 4288.288633 | X26: =SUM(X23:X25) -> 20936.93862 | Z26: =SUM(Z23:Z25) -> 4168.829164 | AA26: =SUM(AA23:AA25) -> 20353.69533 | AC26: =SUM(AC23:AC25) -> 4049.369695 | AD26: =SUM(AD23:AD25) -> 19770.45204 | AF26: =SUM(AF23:AF25) -> 3929.910225 | AG26: =SUM(AG23:AG25) -> 19187.20875 | AI26: =SUM(AI23:AI25) -> 3817.087394 | AJ26: =SUM(AJ23:AJ25) -> 18636.36786 | AL26: =SUM(AL23:AL25) -> 3710.901199 | AM26: =SUM(AM23:AM25) -> 18117.92938 | AO26: =SUM(AO23:AO25) -> 3052.340848 | AP26: =SUM(AP23:AP25) -> 14902.60532 | AR26: =SUM(AR23:AR25) -> 3005.919968 | AS26: =SUM(AS23:AS25) -> 14675.9622 | AU26: =SUM(AU23:AU25) -> 2917.321125 | AV26: =SUM(AV23:AV25) -> 14243.39137 | AX26: =SUM(AX23:AX25) -> 2828.557268 | AY26: =SUM(AY23:AY25) -> 13810.0149 | BA26: =SUM(BA23:BA25) -> 2771.749275 | BB26: =SUM(BB23:BB25) -> 13532.65822
A28: OM&A | E28: =E13+E14 -> 1666 | F28: =F14 -> 8134 | H28: =H13+H14 -> 1190 | I28: =I14 -> 5810 | K28: =K13+K14 -> 1224 | L28: =L14 -> 5976 | N28: =N13+N14 -> 1258 | O28: =O14 -> 6142 | Q28: =Q13+Q14 -> 1292 | R28: =R14 -> 6308 | T28: =T13+T14 -> 0 | U28: =U14 -> 0 | W28: =W13+W14 -> 0 | X28: =X14 -> 0 | Z28: =Z13+Z14 -> 0 | AA28: =AA14 -> 0 | AC28: =AC13+AC14 -> 0 | AD28: =AD14 -> 0 | AF28: =AF13+AF14 -> 0 | AG28: =AG14 -> 0 | AI28: =AI13+AI14 -> 0 | AJ28: =AJ14 -> 0 | AL28: =AL13+AL14 -> 0 | AM28: =AM14 -> 0 | AO28: =AO13+AO14 -> 0 | AP28: =AP14 -> 0 | AR28: =AR13+AR14 -> 0 | AS28: =AS14 -> 0 | AU28: =AU13+AU14 -> 0 | AV28: =AV14 -> 0 | AX28: =AX13+AX14 -> 0 | AY28: =AY14 -> 0 | BA28: =BA13+BA14 -> 0 | BB28: =BB14 -> 0
A29: Amortization | D29: =D69 -> 1225 | E29: =D29*E$11 -> 208.25 | F29: =D29*F$11 -> 1016.75 | G29: =E67+E68 -> 3325 | H29: =G29*H$11 -> 565.25 | I29: =G29*I$11 -> 2759.75 | J29: =F67+F68 -> 5100 | K29: =J29*K$11 -> 867 | L29: =J29*L$11 -> 4233 | M29: =G67+G68 -> 6925 | N29: =M29*N$11 -> 1177.25 | O29: =M29*O$11 -> 5747.75 | P29: =H67+H68 -> 8800 | Q29: =P29*Q$11 -> 1496 | R29: =P29*R$11 -> 7304 | S29: =I67+I68 -> 9750 | T29: =S29*T$11 -> 1657.5 | U29: =S29*U$11 -> 8092.5 | V29: =J67+J68 -> 9750 | W29: =V29*W$11 -> 1657.5 | X29: =V29*X$11 -> 8092.5 | Y29: =K67+K68 -> 9750 | Z29: =Y29*Z$11 -> 1657.5 | AA29: =Y29*AA$11 -> 8092.5 | AB29: =L67+L68 -> 9750 | AC29: =AB29*AC$11 -> 1657.5 | AD29: =AB29*AD$11 -> 8092.5 | AE29: =M67+M68 -> 9750 | AF29: =AE29*AF$11 -> 1657.5 | AG29: =AE29*AG$11 -> 8092.5 | AH29: =N67+N68 -> 8666.666667 | AI29: =AH29*AI$11 -> 1473.333333 | AJ29: =AH29*AJ$11 -> 7193.333333 | AK29: =O67+O68 -> 8666.666667 | AL29: =AK29*AL$11 -> 1473.333333 | AM29: =AK29*AM$11 -> 7193.333333 | AN29: =P67+P68 -> 8666.666667 | AO29: =AN29*AO$11 -> 1473.333333 | AP29: =AN29*AP$11 -> 7193.333333 | AQ29: =Q67+Q68 -> 8666.666667 | AR29: =AQ29*AR$11 -> 1473.333333 | AS29: =AQ29*AS$11 -> 7193.333333 | AT29: =R67+R68 -> 8666.666667 | AU29: =AT29*AU$11 -> 1473.333333 | AV29: =AT29*AV$11 -> 7193.333333 | AW29: =S67+S68 -> 8666.666667 | AX29: =AW29*AX$11 -> 1473.333333 | AY29: =AW29*AY$11 -> 7193.333333 | AZ29: =T67+T68 -> 8666.666667 | BA29: =AZ29*BA$11 -> 1473.333333 | BB29: =AZ29*BB$11 -> 7193.333333
A30: Grossed-up PILs | E30: =E55 -> -51.95105933 | F30: =F55 -> -253.6434073 | H30: =H55 -> -130.3914329 | I30: =I55 -> -636.6169957 | K30: =K55 -> -166.7639938 | L30: =L55 -> -814.2006756 | N30: =N55 -> -185.6221543 | O30: =O55 -> -906.2728708 | Q30: =Q55 -> -188.199419 | R30: =R55 -> -918.8559868 | T30: =T55 -> -134.2909303 | U30: =U55 -> -655.6557187 | W30: =W55 -> -32.34953918 | X30: =X55 -> -157.9418678 | Z30: =Z55 -> 59.65807702 | AA30: =AA55 -> 291.2717878 | AC30: =AC55 -> 142.5266202 | AD30: =AD55 -> 695.8652635 | AF30: =AF55 -> 216.9872163 | AG30: =AG55 -> 1059.408174 | AI30: =AI55 -> 218.5473185 | AJ30: =AJ55 -> 1067.025143 | AL30: =AL55 -> 280.6262052 | AM30: =AM55 -> 1370.116179 | AO30: =AO55 -> 314.5186013 | AP30: =AP55 -> 1535.590818 | AR30: =AR55 -> 364.6643685 | AS30: =AS55 -> 1780.420152 | AU30: =AU55 -> 409.2686131 | AV30: =AV55 -> 1998.193817 | AX30: =AX55 -> 448.774657 | AY30: =AY55 -> 2191.076266 | BA30: =BA55 -> 483.5903561 | BB30: =BB55 -> 2361.058797
A32: Revenue Requirement | E32: =SUM(E26:E30) -> 2430.764215 | F32: =SUM(F26:F30) -> 11867.84881 | H32: =SUM(H26:H30) -> 3230.179417 | I32: =SUM(I26:I30) -> 15770.87598 | K32: =SUM(K26:K30) -> 4348.172777 | L32: =SUM(L26:L30) -> 21229.31415 | N32: =SUM(N26:N30) -> 5494.630989 | O32: =SUM(O26:O30) -> 26826.72777 | Q32: =SUM(Q26:Q30) -> 6667.707935 | R32: =SUM(R26:R30) -> 32554.10345 | T32: =SUM(T26:T30) -> 5930.957171 | U32: =SUM(U26:U30) -> 28957.02619 | W32: =SUM(W26:W30) -> 5913.439093 | X32: =SUM(X26:X30) -> 28871.49675 | Z32: =SUM(Z26:Z30) -> 5885.987241 | AA32: =SUM(AA26:AA30) -> 28737.46712 | AC32: =SUM(AC26:AC30) -> 5849.396315 | AD32: =SUM(AD26:AD30) -> 28558.8173 | AF32: =SUM(AF26:AF30) -> 5804.397442 | AG32: =SUM(AG26:AG30) -> 28339.11692 | AI32: =SUM(AI26:AI30) -> 5508.968045 | AJ32: =SUM(AJ26:AJ30) -> 26896.72634 | AL32: =SUM(AL26:AL30) -> 5464.860737 | AM32: =SUM(AM26:AM30) -> 26681.37889 | AO32: =SUM(AO26:AO30) -> 4840.192783 | AP32: =SUM(AP26:AP30) -> 23631.52947 | AR32: =SUM(AR26:AR30) -> 4843.91767 | AS32: =SUM(AS26:AS30) -> 23649.71568 | AU32: =SUM(AU26:AU30) -> 4799.923071 | AV32: =SUM(AV26:AV30) -> 23434.91853 | AX32: =SUM(AX26:AX30) -> 4750.665259 | AY32: =SUM(AY26:AY30) -> 23194.4245 | BA32: =SUM(BA26:BA30) -> 4728.672964 | BB32: =SUM(BB26:BB30) -> 23087.05036
A35: Provincial Rate Protection | F35: =F32 -> 11867.84881 | I35: =I32 -> 15770.87598 | L35: =L32 -> 21229.31415 | O35: =O32 -> 26826.72777 | R35: =R32 -> 32554.10345 | U35: =U32 -> 28957.02619 | X35: =X32 -> 28871.49675 | AA35: =AA32 -> 28737.46712 | AD35: =AD32 -> 28558.8173 | AG35: =AG32 -> 28339.11692 | AJ35: =AJ32 -> 26896.72634 | AM35: =AM32 -> 26681.37889 | AP35: =AP32 -> 23631.52947 | AS35: =AS32 -> 23649.71568 | AV35: =AV32 -> 23434.91853 | AY35: =AY32 -> 23194.4245 | BB35: =BB32 -> 23087.05036
A37: Monthly Amount Paid by IESO | F37: =F35/12 -> 988.9874011 | I37: =I35/12 -> 1314.239665 | L37: =L35/12 -> 1769.109512 | O37: =O35/12 -> 2235.560648 | R37: =R35/12 -> 2712.841954 | U37: =U35/12 -> 2413.085516 | X37: =X35/12 -> 2405.958063 | AA37: =AA35/12 -> 2394.788926 | AD37: =AD35/12 -> 2379.901442 | AG37: =AG35/12 -> 2361.593077 | AJ37: =AJ35/12 -> 2241.393862 | AM37: =AM35/12 -> 2223.448241 | AP37: =AP35/12 -> 1969.294122 | AS37: =AS35/12 -> 1970.80964 | AV37: =AV35/12 -> 1952.909877 | AY37: =AY35/12 -> 1932.868708 | BB37: =BB35/12 -> 1923.920863
A39: Note 1: The difference between the actual costs of approved eligible investments and revenue received from the IESO should be recorded in a variance account. The Board may provide regulatory accounting guidance regarding a variance account either in an individual proceeding or on a generic basis.
A40: Note 2: For the 2014 Test Year, Costs and Revenues of the Direct Benefit are to be included in the test year applicant Rate Base and Revenues.
A42: PILs Calculation
E43: 2015 | H43: 2016 | K43: 2017 | N43: 2018 | Q43: 2019 | T43: =S9 -> 2020 | W43: =V9 -> 2021 | Z43: =Y9 -> 2022 | AC43: =AB9 -> 2023 | AF43: =AE9 -> 2024 | AI43: =AH9 -> 2025 | AL43: =AK9 -> 2026 | AO43: =AN9 -> 2027 | AR43: =AQ9 -> 2028 | AU43: =AT9 -> 2029 | AX43: =AW9 -> 2030 | BA43: =AZ9 -> 2031
A44: Income Tax | E44: Direct Benefit | F44: Provincial | H44: Direct Benefit | I44: Provincial | K44: Direct Benefit | L44: Provincial | N44: Direct Benefit | O44: Provincial | Q44: Direct Benefit | R44: Provincial | T44: Direct Benefit | U44: Provincial | W44: Direct Benefit | X44: Provincial | Z44: Direct Benefit | AA44: Provincial | AC44: Direct Benefit | AD44: Provincial | AF44: Direct Benefit | AG44: Provincial | AI44: Direct Benefit | AJ44: Provincial | AL44: Direct Benefit | AM44: Provincial | AO44: Direct Benefit | AP44: Provincial | AR44: Direct Benefit | AS44: Provincial | AU44: Direct Benefit | AV44: Provincial | AX44: Direct Benefit | AY44: Provincial | BA44: Direct Benefit | BB44: Provincial
M45: Total | P45: Total | S45: Total | V45: Total | Y45: Total | AB45: Total | AE45: Total | AH45: Total | AK45: Total | AN45: Total | AQ45: Total | AT45: Total | AW45: Total | AZ45: Total
A46: Net Income - ROE on Rate Base | E46: =E25 -> 314.059326 | F46: =F25 -> 1533.348474 | H46: =H25 -> 828.58629 | I46: =I25 -> 4045.45071 | K46: =K25 -> 1251.114864 | L46: =L25 -> 6108.384336 | N46: =N25 -> 1674.908238 | O46: =O25 -> 8177.493162 | Q46: =Q25 -> 2099.650212 | R46: =R25 -> 10251.23339 | T46: =T25 -> 2275.059 | U46: =U25 -> 11107.641 | W46: =W25 -> 2213.4 | X46: =X25 -> 10806.6 | Z46: =Z25 -> 2151.741 | AA46: =AA25 -> 10505.559 | AC46: =AC25 -> 2090.082 | AD46: =AD25 -> 10204.518 | AF46: =AF25 -> 2028.423 | AG46: =AG25 -> 9903.477 | AI46: =AI25 -> 1970.1895 | AJ46: =AJ25 -> 9619.1605 | AL46: =AL25 -> 1915.3815 | AM46: =AM25 -> 9351.5685 | AO46: =AO25 -> 1800.555 | AP46: =AP25 -> 8790.945 | AR46: =AR25 -> 1747.515 | AS46: =AS25 -> 8531.985 | AU46: =AU25 -> 1694.475 | AV46: =AV25 -> 8273.025 | AX46: =AX25 -> 1641.435 | AY46: =AY25 -> 8014.065 | BA46: =BA25 -> 1588.395 | BB46: =BB25 -> 7755.105
A47: Amortization (17% DB and 83% P) | E47: =E29 -> 208.25 | F47: =F29 -> 1016.75 | H47: =H29 -> 565.25 | I47: =I29 -> 2759.75 | K47: =K29 -> 867 | L47: =L29 -> 4233 | N47: =N29 -> 1177.25 | O47: =O29 -> 5747.75 | Q47: =Q29 -> 1496 | R47: =R29 -> 7304 | T47: =T29 -> 1657.5 | U47: =U29 -> 8092.5 | W47: =W29 -> 1657.5 | X47: =X29 -> 8092.5 | Z47: =Z29 -> 1657.5 | AA47: =AA29 -> 8092.5 | AC47: =AC29 -> 1657.5 | AD47: =AD29 -> 8092.5 | AF47: =AF29 -> 1657.5 | AG47: =AG29 -> 8092.5 | AI47: =AI29 -> 1473.333333 | AJ47: =AJ29 -> 7193.333333 | AL47: =AL29 -> 1473.333333 | AM47: =AM29 -> 7193.333333 | AO47: =AO29 -> 1473.333333 | AP47: =AP29 -> 7193.333333 | AR47: =AR29 -> 1473.333333 | AS47: =AS29 -> 7193.333333 | AU47: =AU29 -> 1473.333333 | AV47: =AV29 -> 7193.333333 | AX47: =AX29 -> 1473.333333 | AY47: =AY29 -> 7193.333333 | BA47: =BA29 -> 1473.333333 | BB47: =BB29 -> 7193.333333
A48: CCA (17% DB and 83% P) | E48: =-D85*E$11 -> -666.4 | F48: =-D85*F$11 -> -3253.6 | H48: =-E85*H$11 -> -1755.488 | I48: =-E85*I$11 -> -8570.912 | K48: =-F85*K$11 -> -2580.64896 | L48: =-F85*L$11 -> -12599.63904 | N48: =-G85*N$11 -> -3366.997043 | O48: =-G85*O$11 -> -16438.86792 | Q48: =-H85*Q$11 -> -4117.63728 | R48: =-H85*R$11 -> -20103.75848 | T48: =-I85*T$11 -> -4305.026297 | U48: =-I85*U$11 -> -21018.6578 | W48: =-J85*W$11 -> -3960.624194 | X48: =-J85*X$11 -> -19337.16518 | Z48: =-K85*Z$11 -> -3643.774258 | AA48: =-K85*AA$11 -> -17790.19197 | AC48: =-L85*AC$11 -> -3352.272317 | AD48: =-L85*AD$11 -> -16366.97661 | AF48: =-M85*AF$11 -> -3084.090532 | AG48: =-M85*AG$11 -> -15057.61848 | AI48: =-N85*AI$11 -> -2837.363289 | AJ48: =-N85*AJ$11 -> -13853.009 | AL48: =-O85*AL$11 -> -2610.374226 | AM48: =-O85*AM$11 -> -12744.76828 | AO48: =-P85*AO$11 -> -2401.544288 | AP48: =-P85*AP$11 -> -11725.18682 | AR48: =-Q85*AR$11 -> -2209.420745 | AS48: =-Q85*AS$11 -> -10787.17187 | AU48: =-R85*AU$11 -> -2032.667086 | AV48: =-R85*AV$11 -> -9924.198124 | AX48: =-S85*AX$11 -> -1870.053719 | AY48: =-S85*AY$11 -> -9130.262274 | BA48: =-T85*BA$11 -> -1720.449421 | BB48: =-T85*BB$11 -> -8399.841292
A49: Taxable income | E49: =SUM(E46:E48) -> -144.090674 | F49: =SUM(F46:F48) -> -703.501526 | H49: =SUM(H46:H48) -> -361.65171 | I49: =SUM(I46:I48) -> -1765.71129 | K49: =SUM(K46:K48) -> -462.534096 | L49: =SUM(L46:L48) -> -2258.254704 | N49: =SUM(N46:N48) -> -514.8388052 | O49: =SUM(O46:O48) -> -2513.624755 | Q49: =SUM(Q46:Q48) -> -521.9870677 | R49: =SUM(R46:R48) -> -2548.525095 | T49: =SUM(T46:T48) -> -372.4672974 | U49: =SUM(U46:U48) -> -1818.516805 | W49: =SUM(W46:W48) -> -89.72419358 | X49: =SUM(X46:X48) -> -438.0651804 | Z49: =SUM(Z46:Z48) -> 165.4667419 | AA49: =SUM(AA46:AA48) -> 807.867034 | AC49: =SUM(AC46:AC48) -> 395.3096826 | AD49: =SUM(AD46:AD48) -> 1930.041391 | AF49: =SUM(AF46:AF48) -> 601.832468 | AG49: =SUM(AG46:AG48) -> 2938.35852 | AI49: =SUM(AI46:AI48) -> 606.1595439 | AJ49: =SUM(AJ46:AJ48) -> 2959.484832 | AL49: =SUM(AL46:AL48) -> 778.340607 | AM49: =SUM(AM46:AM48) -> 3800.133552 | AO49: =SUM(AO46:AO48) -> 872.3440451 | AP49: =SUM(AP46:AP48) -> 4259.091514 | AR49: =SUM(AR46:AR48) -> 1011.427588 | AS49: =SUM(AS46:AS48) -> 4938.14646 | AU49: =SUM(AU46:AU48) -> 1135.141248 | AV49: =SUM(AV46:AV48) -> 5542.16021 | AX49: =SUM(AX46:AX48) -> 1244.714615 | AY49: =SUM(AY46:AY48) -> 6077.13606 | BA49: =SUM(BA46:BA48) -> 1341.278912 | BB49: =SUM(BB46:BB48) -> 6548.597042
A51: Tax Rate (to be entered) | E51: 0.265 | F51: 0.265 | H51: 0.265 | I51: 0.265 | K51: 0.265 | L51: 0.265 | N51: 0.265 | O51: 0.265 | Q51: 0.265 | R51: 0.265 | T51: 0.265 | U51: 0.265 | W51: 0.265 | X51: 0.265 | Z51: 0.265 | AA51: 0.265 | AC51: 0.265 | AD51: 0.265 | AF51: 0.265 | AG51: 0.265 | AI51: 0.265 | AJ51: 0.265 | AL51: 0.265 | AM51: 0.265 | AO51: 0.265 | AP51: 0.265 | AR51: 0.265 | AS51: 0.265 | AU51: 0.265 | AV51: 0.265 | AX51: 0.265 | AY51: 0.265 | BA51: 0.265 | BB51: 0.265
A52: Income Taxes Payable | E52: =E49*E51 -> -38.18402861 | F52: =F49*F51 -> -186.4279044 | H52: =H49*H51 -> -95.83770315 | I52: =I49*I51 -> -467.9134918 | K52: =K49*K51 -> -122.5715354 | L52: =L49*L51 -> -598.4374966 | N52: =N49*N51 -> -136.4322834 | O52: =O49*O51 -> -666.11056 | Q52: =Q49*Q51 -> -138.326573 | R52: =R49*R51 -> -675.3591503 | T52: =T49*T51 -> -98.7038338 | U52: =U49*U51 -> -481.9069533 | W52: =W49*W51 -> -23.7769113 | X52: =X49*X51 -> -116.0872728 | Z52: =Z49*Z51 -> 43.84868661 | AA52: =AA49*AA51 -> 214.084764 | AC52: =AC49*AC51 -> 104.7570659 | AD52: =AD49*AD51 -> 511.4609687 | AF52: =AF49*AF51 -> 159.485604 | AG52: =AG49*AG51 -> 778.6650078 | AI52: =AI49*AI51 -> 160.6322791 | AJ52: =AJ49*AJ51 -> 784.2634804 | AL52: =AL49*AL51 -> 206.2602609 | AM52: =AM49*AM51 -> 1007.035391 | AO52: =AO49*AO51 -> 231.171172 | AP52: =AP49*AP51 -> 1128.659251 | AR52: =AR49*AR51 -> 268.0283109 | AS52: =AS49*AS51 -> 1308.608812 | AU52: =AU49*AU51 -> 300.8124307 | AV52: =AV49*AV51 -> 1468.672456 | AX52: =AX49*AX51 -> 329.8493729 | AY52: =AY49*AY51 -> 1610.441056 | BA52: =BA49*BA51 -> 355.4389117 | BB52: =BB49*BB51 -> 1735.378216
A53: Gross Up
A54: Income Taxes Payable | E54: =E52/(1-E51) -> -51.95105933 | F54: =F52/(1-F51) -> -253.6434073 | H54: =H52/(1-H51) -> -130.3914329 | I54: =I52/(1-I51) -> -636.6169957 | K54: =K52/(1-K51) -> -166.7639938 | L54: =L52/(1-L51) -> -814.2006756 | N54: =N52/(1-N51) -> -185.6221543 | O54: =O52/(1-O51) -> -906.2728708 | Q54: =Q52/(1-Q51) -> -188.199419 | R54: =R52/(1-R51) -> -918.8559868 | T54: =T52/(1-T51) -> -134.2909303 | U54: =U52/(1-U51) -> -655.6557187 | W54: =W52/(1-W51) -> -32.34953918 | X54: =X52/(1-X51) -> -157.9418678 | Z54: =Z52/(1-Z51) -> 59.65807702 | AA54: =AA52/(1-AA51) -> 291.2717878 | AC54: =AC52/(1-AC51) -> 142.5266202 | AD54: =AD52/(1-AD51) -> 695.8652635 | AF54: =AF52/(1-AF51) -> 216.9872163 | AG54: =AG52/(1-AG51) -> 1059.408174 | AI54: =AI52/(1-AI51) -> 218.5473185 | AJ54: =AJ52/(1-AJ51) -> 1067.025143 | AL54: =AL52/(1-AL51) -> 280.6262052 | AM54: =AM52/(1-AM51) -> 1370.116179 | AO54: =AO52/(1-AO51) -> 314.5186013 | AP54: =AP52/(1-AP51) -> 1535.590818 | AR54: =AR52/(1-AR51) -> 364.6643685 | AS54: =AS52/(1-AS51) -> 1780.420152 | AU54: =AU52/(1-AU51) -> 409.2686131 | AV54: =AV52/(1-AV51) -> 1998.193817 | AX54: =AX52/(1-AX51) -> 448.774657 | AY54: =AY52/(1-AY51) -> 2191.076266 | BA54: =BA52/(1-BA51) -> 483.5903561 | BB54: =BB52/(1-BB51) -> 2361.058797
A55: Grossed Up PILs | E55: =SUM(E54:E54) -> -51.95105933 | F55: =SUM(F54:F54) -> -253.6434073 | H55: =SUM(H54:H54) -> -130.3914329 | I55: =SUM(I54:I54) -> -636.6169957 | K55: =SUM(K54:K54) -> -166.7639938 | L55: =SUM(L54:L54) -> -814.2006756 | N55: =SUM(N54:N54) -> -185.6221543 | O55: =SUM(O54:O54) -> -906.2728708 | Q55: =SUM(Q54:Q54) -> -188.199419 | R55: =SUM(R54:R54) -> -918.8559868 | T55: =SUM(T54:T54) -> -134.2909303 | U55: =SUM(U54:U54) -> -655.6557187 | W55: =SUM(W54:W54) -> -32.34953918 | X55: =SUM(X54:X54) -> -157.9418678 | Z55: =SUM(Z54:Z54) -> 59.65807702 | AA55: =SUM(AA54:AA54) -> 291.2717878 | AC55: =SUM(AC54:AC54) -> 142.5266202 | AD55: =SUM(AD54:AD54) -> 695.8652635 | AF55: =SUM(AF54:AF54) -> 216.9872163 | AG55: =SUM(AG54:AG54) -> 1059.408174 | AI55: =SUM(AI54:AI54) -> 218.5473185 | AJ55: =SUM(AJ54:AJ54) -> 1067.025143 | AL55: =SUM(AL54:AL54) -> 280.6262052 | AM55: =SUM(AM54:AM54) -> 1370.116179 | AO55: =SUM(AO54:AO54) -> 314.5186013 | AP55: =SUM(AP54:AP54) -> 1535.590818 | AR55: =SUM(AR54:AR54) -> 364.6643685 | AS55: =SUM(AS54:AS54) -> 1780.420152 | AU55: =SUM(AU54:AU54) -> 409.2686131 | AV55: =SUM(AV54:AV54) -> 1998.193817 | AX55: =SUM(AX54:AX54) -> 448.774657 | AY55: =SUM(AY54:AY54) -> 2191.076266 | BA55: =SUM(BA54:BA54) -> 483.5903561 | BB55: =SUM(BB54:BB54) -> 2361.058797
A58: Appendix 2-FC
A59: Calculation of Renewable Generation Connection Direct Benefits/Provincial Amount: Renewable Expansion Investments
A60: Net Fixed Assets | D60: 2015 | E60: 2016 | F60: 2017 | G60: 2018 | H60: 2019 | I60: 2020 | J60: =+I60+1 -> 2021 | K60: =+J60+1 -> 2022 | L60: 2023 | M60: 2024 | N60: 2025 | O60: =+N60+1 -> 2026 | P60: =+O60+1 -> 2027 | Q60: =+P60+1 -> 2028 | R60: =+Q60+1 -> 2029 | S60: =+R60+1 -> 2030 | T60: =+S60+1 -> 2031
B61: Enter applicable amortization in years: | D61: 40 | E61: 40 | F61: 40 | G61: 40 | H61: 40 | I61: 40 | J61: 40 | K61: 40 | L61: 40 | M61: 40 | N61: 45 | O61: 45 | P61: 45 | Q61: 45 | R61: 45 | S61: 45 | T61: 45
A62: Opening Gross Fixed Assets | E62: =D64 -> 98000 | F62: 168000 | G62: 240000 | H62: 314000 | I62: 390000 | J62: 390000 | K62: =J64 -> 390000 | L62: =K64 -> 390000 | M62: =L64 -> 390000 | N62: =M64 -> 390000 | O62: 390000 | P62: =O64 -> 390000 | Q62: =P64 -> 390000 | R62: =Q64 -> 390000 | S62: =R64 -> 390000 | T62: =S64 -> 390000
A63: Gross Capital Additions | D63: ='App.2-FA Proposed REG Invest.'!D85 -> 98000 | E63: ='App.2-FA Proposed REG Invest.'!E85 -> 70000 | F63: ='App.2-FA Proposed REG Invest.'!F85 -> 72000 | G63: ='App.2-FA Proposed REG Invest.'!G85 -> 74000 | H63: ='App.2-FA Proposed REG Invest.'!H85 -> 76000 | I63: ='App.2-FA Proposed REG Invest.'!I85 -> 0 | J63: ='App.2-FA Proposed REG Invest.'!J85 -> 0 | K63: ='App.2-FA Proposed REG Invest.'!K85 -> 0 | L63: ='App.2-FA Proposed REG Invest.'!L85 -> 0 | M63: ='App.2-FA Proposed REG Invest.'!M85 -> 0 | N63: ='App.2-FA Proposed REG Invest.'!N85 -> 0 | O63: ='App.2-FA Proposed REG Invest.'!O85 -> 0 | P63: ='App.2-FA Proposed REG Invest.'!P85 -> 0 | Q63: ='App.2-FA Proposed REG Invest.'!Q85 -> 0 | R63: ='App.2-FA Proposed REG Invest.'!R85 -> 0 | S63: ='App.2-FA Proposed REG Invest.'!S85 -> 0 | T63: ='App.2-FA Proposed REG Invest.'!T85 -> 0
A64: Closing Gross Fixed Assets | D64: =SUM(D62:D63) -> 98000 | E64: 168000 | F64: 240000 | G64: 314000 | H64: 390000 | I64: 390000 | J64: =SUM(J62:J63) -> 390000 | K64: 390000 | L64: 390000 | M64: 390000 | N64: 390000 | O64: =SUM(O62:O63) -> 390000 | P64: 390000 | Q64: 390000 | R64: 390000 | S64: 390000 | T64: 390000
A66: Opening Accumulated Amortization | E66: =D69 -> 1225 | F66: =E69 -> 4550 | G66: =F69 -> 9650 | H66: 16575 | I66: 25375 | J66: 35125 | K66: =J69 -> 44875 | L66: =K69 -> 54625 | M66: =L69 -> 64375 | N66: =M69 -> 74125 | O66: =N69 -> 82791.66667 | P66: =O69 -> 91458.33333 | Q66: =P69 -> 100125 | R66: =Q69 -> 108791.6667 | S66: =R69 -> 117458.3333 | T66: =S69 -> 126125
A67: Current Year Amortization (before additions) | E67: =E62/E61 -> 2450 | F67: =F62/F61 -> 4200 | G67: =G62/G61 -> 6000 | H67: =H62/H61 -> 7850 | I67: =I62/I61 -> 9750 | J67: 9750 | K67: 9750 | L67: 9750 | M67: 9750 | N67: 8666.666667 | O67: 8666.666667 | P67: 8666.666667 | Q67: 8666.666667 | R67: 8666.666667 | S67: 8666.666667 | T67: 8666.666667
A68: Additions (half year) | D68: =D63/D61/2 -> 1225 | E68: 875 | F68: 900 | G68: 925 | H68: 950 | I68: 0 | J68: =J63/J61/2 -> 0 | K68: 0 | L68: 0 | M68: 0 | N68: 0 | O68: 0 | P68: 0 | Q68: 0 | R68: 0 | S68: 0 | T68: 0 | U68: =U63/$E$61 -> 0
A69: Closing Accumulated Amortization | D69: =SUM(D66+D68) -> 1225 | E69: =SUM(E66:E68) -> 4550 | F69: =SUM(F66:F68) -> 9650 | G69: 16575 | H69: 25375 | I69: 35125 | J69: 44875 | K69: =SUM(K66:K68) -> 54625 | L69: 64375 | M69: 74125 | N69: 82791.66667 | O69: =SUM(O66:O68) -> 91458.33333 | P69: 100125 | Q69: 108791.6667 | R69: 117458.3333 | S69: 126125 | T69: 134791.6667
A71: Opening Net Fixed Assets | D71: =D62-D66 -> 0 | E71: =D72 -> 96775 | F71: 163450 | G71: 230350 | H71: 297425 | I71: 364625 | J71: 354875 | K71: =J72 -> 345125 | L71: =K72 -> 335375 | M71: =L72 -> 325625 | N71: =M72 -> 315875 | O71: =N72 -> 307208.3333 | P71: =O72 -> 298541.6667 | Q71: =P72 -> 289875 | R71: =Q72 -> 281208.3333 | S71: =R72 -> 272541.6667 | T71: =S72 -> 263875
A72: Closing Net Fixed Assets | D72: =D64-D69 -> 96775 | E72: 163450 | F72: 230350 | G72: 297425 | H72: 364625 | I72: 354875 | J72: =J64-J69 -> 345125 | K72: 335375 | L72: 325625 | M72: 315875 | N72: 307208.3333 | O72: =O64-O69 -> 298541.6667 | P72: =P64-P69 -> 289875 | Q72: 281208.3333 | R72: 272541.6667 | S72: 263875 | T72: 255208.3333
A73: Average Net Fixed Assets | D73: =SUM(D71:D72)/2 -> 48387.5 | E73: 130112.5 | F73: 196900 | G73: 263887.5 | H73: 331025 | I73: 359750 | J73: =SUM(J71:J72)/2 -> 350000 | K73: 340250 | L73: 330500 | M73: 320750 | N73: 311541.6667 | O73: =SUM(O71:O72)/2 -> 302875 | P73: 294208.3333 | Q73: 285541.6667 | R73: 276875 | S73: 268208.3333 | T73: 259541.6667
A75: UCC for PILs Calculation
D76: 2015 | E76: 2016 | F76: 2017 | G76: 2018 | H76: 2019 | I76: 2020 | J76: =J60 -> 2021 | K76: =K60 -> 2022 | L76: 2023 | M76: 2024 | N76: 2025 | O76: =O60 -> 2026 | P76: 2027 | Q76: 2028 | R76: 2029 | S76: 2030 | T76: 2031
A78: Opening UCC | E78: =D86 -> 94080 | F78: 153753.6 | G78: 210573.312 | H78: 264767.447 | I78: 316546.0513 | J78: 291222.3672 | K78: =J86 -> 267924.5778 | L78: =K86 -> 246490.6116 | M78: =L86 -> 226771.3627 | N78: =M86 -> 208629.6536 | O78: =N86 -> 191939.2813 | P78: =O86 -> 176584.1388 | Q78: =P86 -> 162457.4077 | R78: =Q86 -> 149460.8151 | S78: =R86 -> 137503.9499 | T78: =S86 -> 126503.6339
A79: Capital Additions (from Appendix 2-FA) | D79: =D63 -> 98000 | E79: 70000 | F79: 72000 | G79: 74000 | H79: 76000 | I79: 0 | J79: =J63 -> 0 | K79: 0 | L79: 0 | M79: 0 | N79: 0 | O79: =O63 -> 0 | P79: 0 | Q79: 0 | R79: 0 | S79: 0 | T79: 0
A80: UCC Before Half Year Rule | D80: =SUM(D78:D79) -> 98000 | E80: 164080 | F80: 225753.6 | G80: 284573.312 | H80: 340767.447 | I80: 316546.0513 | J80: =SUM(J78:J79) -> 291222.3672 | K80: 267924.5778 | L80: 246490.6116 | M80: 226771.3627 | N80: 208629.6536 | O80: =SUM(O78:O79) -> 191939.2813 | P80: 176584.1388 | Q80: 162457.4077 | R80: 149460.8151 | S80: 137503.9499 | T80: 126503.6339
A81: Half Year Rule (1/2 Additions - Disposals) | D81: =D79/2 -> 49000 | E81: 35000 | F81: 36000 | G81: 37000 | H81: 38000 | I81: 0 | J81: =J79/2 -> 0 | K81: 0 | L81: 0 | M81: 0 | N81: 0 | O81: =O79/2 -> 0 | P81: 0 | Q81: 0 | R81: 0 | S81: 0 | T81: 0
A82: Reduced UCC | D82: =D80-D81 -> 49000 | E82: 129080 | F82: 189753.6 | G82: 247573.312 | H82: 302767.447 | I82: 316546.0513 | J82: =J80-J81 -> 291222.3672 | K82: 267924.5778 | L82: 246490.6116 | M82: 226771.3627 | N82: 208629.6536 | O82: =O80-O81 -> 191939.2813 | P82: 176584.1388 | Q82: 162457.4077 | R82: 149460.8151 | S82: 137503.9499 | T82: 126503.6339
A83: CCA Rate Class (to be entered) | C83: 47 | D83: =C83 -> 47 | E83: =C83 -> 47 | F83: =C83 -> 47 | G83: =C83 -> 47 | H83: =C83 -> 47 | I83: =D83 -> 47 | J83: =$C$83 -> 47 | K83: =$C$83 -> 47 | L83: 47 | M83: 47 | N83: 47 | O83: 47 | P83: 47 | Q83: 47 | R83: 47 | S83: 47 | T83: 47
A84: CCA Rate (to be entered) | C84: 0.08 | D84: =C84 -> 0.08 | E84: =C84 -> 0.08 | F84: =C84 -> 0.08 | G84: =C84 -> 0.08 | H84: =C84 -> 0.08 | I84: =D84 -> 0.08 | J84: =$C$84 -> 0.08 | K84: =$C$84 -> 0.08 | L84: 0.08 | M84: 0.08 | N84: 0.08 | O84: 0.08 | P84: 0.08 | Q84: 0.08 | R84: 0.08 | S84: 0.08 | T84: 0.08
A85: CCA | D85: =D82*D$84 -> 3920 | E85: =E82*E$84 -> 10326.4 | F85: 15180.288 | G85: 19805.86496 | H85: 24221.39576 | I85: =I82*I$84 -> 25323.6841 | J85: 23297.78937 | K85: =K82*K$84 -> 21433.96622 | L85: 19719.24893 | M85: 18141.70901 | N85: 16690.37229 | O85: =O82*O$84 -> 15355.14251 | P85: 14126.73111 | Q85: 12996.59262 | R85: 11956.86521 | S85: 11000.31599 | T85: 10120.29071
A86: Closing UCC | D86: =D80-D85 -> 94080 | E86: 153753.6 | F86: 210573.312 | G86: 264767.447 | H86: 316546.0513 | I86: 291222.3672 | J86: =J80-J85 -> 267924.5778 | K86: 246490.6116 | L86: 226771.3627 | M86: 208629.6536 | N86: 191939.2813 | O86: =O80-O85 -> 176584.1388 | P86: 162457.4077 | Q86: 149460.8151 | R86: 137503.9499 | S86: 126503.6339 | T86: 116383.3432

Sheet Trueup Calculation 2015-2026
A2: Year | B2: Approved RGCRP , refer to EB-2025-0055, Alectra_APPL_Attach 22_RGCRP BRZ_20250814 | C2: BRZ RGCRP Workform | D2: True-Up
A3: 2015 | B3: 25591.36701 | C3: ='App.2-FB Calc of REG Improvemnt'!$F$39 -> 25655.17059 | D3: =C3-B3 -> 63.80358289
A4: 2016 | B4: 60541.57294 | C4: ='App.2-FB Calc of REG Improvemnt'!$I$39 -> 60710.61523 | D4: 169.0422876
A5: 2017 | B5: 89490.85056 | C5: ='App.2-FB Calc of REG Improvemnt'!$L$39 -> 89741.10887 | D5: 250.2583124
A6: 2018 | B6: 117963.0577 | C6: ='App.2-FB Calc of REG Improvemnt'!$O$39 -> 118291.1392 | D6: 328.0814327
A7: 2019 | B7: 145921.764 | C7: ='App.2-FB Calc of REG Improvemnt'!$R$39 -> 146324.1067 | D7: =C7-B7 -> 402.3427152
A8: 2020 | B8: 143159.8971 | C8: ='App.2-FB Calc of REG Improvemnt'!$U$39 -> 143581.9879 | D8: =C8-B8 -> 422.0907832
A9: 2021 | B9: 139883.2356 | C9: ='App.2-FB Calc of REG Improvemnt'!$X$39 -> 140272.3844 | D9: 389.1487889
A10: 2022 | B10: 136430.2945 | C10: ='App.2-FB Calc of REG Improvemnt'!$AA$39 -> 136786.5013 | D10: 356.2067945
A11: 2023 | B11: 132815.1763 | C11: ='App.2-FB Calc of REG Improvemnt'!$AD$39 -> 133138.4411 | D11: 323.2648001
A12: 2024 | B12: 129050.8551 | C12: ='App.2-FB Calc of REG Improvemnt'!$AG$39 -> 129341.1779 | D12: 290.3228057
A13: 2025 | B13: 125149.2672 | C13: ='App.2-FB Calc of REG Improvemnt'!$AJ$39 -> 124221.7243 | D13: -927.5428709
A14: 2026 | B14: 121121.3938 | C14: ='App.2-FB Calc of REG Improvemnt'!$AM$39 -> 120237.7736 | D14: -883.6202118
A15: Total | B15: =SUM(B3:B14) -> 1367118.732 | C15: =SUM(C3:C14) -> 1368302.131 | D15: 1183.39922
